Workbook

Sheet النسب
A2: النسبة المؤية | B2: النسبة العامة | C2: المبلغ | D2: اسم البند | E2: القيمة المستحقة | F2: النسبة المؤية | I2: =VLOOKUP($H4,'النسب '!$A$2:$E$22,6,0) -> 
A3: 0.05 | B3: 5 | C3: 32000 | D3: مجارى مطر وكمر وتدعيمات | E3: =+C3*A3 -> 1600 | F3: 0.05
A4: 0.1 | B4: 10 | C4: =+C3 -> 32000 | D4: =+D3 -> مجارى مطر وكمر وتدعيمات | E4: 3200 | F4: 0.1
A5: 0.15 | B5: 15 | C5: =+C4 -> 32000 | D5: مجارى مطر وكمر وتدعيمات | E5: 4800 | F5: 0.15
A6: 0.2 | B6: 20 | C6: 32000 | D6: مجارى مطر وكمر وتدعيمات | E6: 6400 | F6: 0.2
A7: 0.25 | B7: 25 | C7: 32000 | D7: مجارى مطر وكمر وتدعيمات | E7: 8000 | F7: 0.25
A8: 0.3 | B8: 30 | C8: 32000 | D8: مجارى مطر وكمر وتدعيمات | E8: 9600 | F8: 0.3
A9: 0.35 | B9: 35 | C9: 32000 | D9: مجارى مطر وكمر وتدعيمات | E9: 11200 | F9: 0.35
A10: 0.4 | B10: 40 | C10: 32000 | D10: مجارى مطر وكمر وتدعيمات | E10: 12800 | F10: 0.4
A11: 0.45 | B11: 45 | C11: 32000 | D11: مجارى مطر وكمر وتدعيمات | E11: 14400 | F11: 0.45
A12: 0.5 | B12: 50 | C12: 32000 | D12: مجارى مطر وكمر وتدعيمات | E12: 16000 | F12: 0.5
A13: 0.55 | B13: 55 | C13: 32000 | D13: مجارى مطر وكمر وتدعيمات | E13: 17600 | F13: 0.55
A14: 0.6 | B14: 60 | C14: 32000 | D14: مجارى مطر وكمر وتدعيمات | E14: 19200 | F14: 0.6
A15: 0.65 | B15: 65 | C15: 32000 | D15: مجارى مطر وكمر وتدعيمات | E15: 20800 | F15: 0.65
A16: 0.7 | B16: 70 | C16: 32000 | D16: مجارى مطر وكمر وتدعيمات | E16: 22400 | F16: 0.7
A17: 0.75 | B17: 75 | C17: 32000 | D17: مجارى مطر وكمر وتدعيمات | E17: 24000 | F17: 0.75
A18: 0.8 | B18: 80 | C18: 32000 | D18: مجارى مطر وكمر وتدعيمات | E18: 25600 | F18: 0.8
A19: 0.85 | B19: 85 | C19: 32000 | D19: مجارى مطر وكمر وتدعيمات | E19: 27200 | F19: 0.85
A20: 0.9 | B20: 90 | C20: 32000 | D20: مجارى مطر وكمر وتدعيمات | E20: 28800 | F20: 0.9
A21: 0.95 | B21: 95 | C21: =+C20 -> 32000 | D21: مجارى مطر وكمر وتدعيمات | E21: 30400 | F21: 0.95
A22: 1 | B22: 100 | C22: 32000 | D22: مجارى مطر وكمر وتدعيمات | E22: 32000 | F22: 1
A23: 0.05 | B23: 5 | C23: 42000 | D23: الاقواس والمدادات | E23: 2100 | F23: 0.05
A24: 0.1 | B24: 10 | C24: =+C23 -> 42000 | D24: الاقواس والمدادات | E24: =+C24*A24 -> 4200 | F24: 0.1
A25: 0.15 | B25: 15 | C25: =+C24 -> 42000 | D25: الاقواس والمدادات | E25: 6300 | F25: 0.15
A26: 0.2 | B26: 20 | C26: 42000 | D26: الاقواس والمدادات | E26: 8400 | F26: 0.2
A27: 0.25 | B27: 25 | C27: 42000 | D27: الاقواس والمدادات | E27: 10500 | F27: 0.25
A28: 0.3 | B28: 30 | C28: 42000 | D28: الاقواس والمدادات | E28: 12600 | F28: 0.3
A29: 0.35 | B29: 35 | C29: 42000 | D29: الاقواس والمدادات | E29: 14700 | F29: 0.35
A30: 0.4 | B30: 40 | C30: 42000 | D30: الاقواس والمدادات | E30: 16800 | F30: 0.4
A31: 0.45 | B31: 45 | C31: 42000 | D31: الاقواس والمدادات | E31: 18900 | F31: 0.45
A32: 0.5 | B32: 50 | C32: 42000 | D32: الاقواس والمدادات | E32: 21000 | F32: 0.5
A33: 0.55 | B33: 55 | C33: 42000 | D33: الاقواس والمدادات | E33: 23100 | F33: 0.55
A34: 0.6 | B34: 60 | C34: 42000 | D34: الاقواس والمدادات | E34: 25200 | F34: 0.6
A35: 0.65 | B35: 65 | C35: 42000 | D35: الاقواس والمدادات | E35: 27300 | F35: 0.65
A36: 0.7 | B36: 70 | C36: 42000 | D36: الاقواس والمدادات | E36: 29400 | F36: 0.7
A37: 0.75 | B37: 75 | C37: 42000 | D37: الاقواس والمدادات | E37: 31500 | F37: 0.75
A38: 0.8 | B38: 80 | C38: 42000 | D38: الاقواس والمدادات | E38: 33600 | F38: 0.8
A39: 0.85 | B39: 85 | C39: 42000 | D39: الاقواس والمدادات | E39: 35700 | F39: 0.85
A40: 0.9 | B40: 90 | C40: 42000 | D40: الاقواس والمدادات | E40: 37800 | F40: 0.9
A41: 0.95 | B41: 95 | C41: 42000 | D41: الاقواس والمدادات | E41: 39900 | F41: 0.95
A42: 1 | B42: 100 | C42: 42000 | D42: الاقواس والمدادات | E42: 42000 | F42: 1
A43: 0.05 | B43: 5 | C43: 42000 | D43: البروفيل | E43: =+C43*A43 -> 2100 | F43: 0.05
A44: 0.1 | B44: 10 | C44: =+C43 -> 42000 | D44: =+D43 -> البروفيل | E44: =+C44*A44 -> 4200 | F44: 0.1
A45: 0.15 | B45: 15 | C45: =+C44 -> 42000 | D45: البروفيل | E45: 6300 | F45: 0.15
A46: 0.2 | B46: 20 | C46: =+C45 -> 42000 | D46: البروفيل | E46: 8400 | F46: 0.2
A47: 0.25 | B47: 25 | C47: =+C46 -> 42000 | D47: البروفيل | E47: 10500 | F47: 0.25
A48: 0.3 | B48: 30 | C48: =+C47 -> 42000 | D48: البروفيل | E48: 12600 | F48: 0.3
A49: 0.35 | B49: 35 | C49: =+C48 -> 42000 | D49: البروفيل | E49: 14700 | F49: 0.35
A50: 0.4 | B50: 40 | C50: =+C49 -> 42000 | D50: البروفيل | E50: 16800 | F50: 0.4
A51: 0.45 | B51: 45 | C51: =+C50 -> 42000 | D51: البروفيل | E51: 18900 | F51: 0.45
A52: 0.5 | B52: 50 | C52: =+C51 -> 42000 | D52: البروفيل | E52: 21000 | F52: 0.5
A53: 0.55 | B53: 55 | C53: =+C52 -> 42000 | D53: البروفيل | E53: 23100 | F53: 0.55
A54: 0.6 | B54: 60 | C54: =+C53 -> 42000 | D54: البروفيل | E54: 25200 | F54: 0.6
A55: 0.65 | B55: 65 | C55: =+C54 -> 42000 | D55: البروفيل | E55: 27300 | F55: 0.65
A56: 0.7 | B56: 70 | C56: =+C55 -> 42000 | D56: البروفيل | E56: 29400 | F56: 0.7
A57: 0.75 | B57: 75 | C57: =+C56 -> 42000 | D57: البروفيل | E57: 31500 | F57: 0.75
A58: 0.8 | B58: 80 | C58: =+C57 -> 42000 | D58: البروفيل | E58: 33600 | F58: 0.8
A59: 0.85 | B59: 85 | C59: =+C58 -> 42000 | D59: البروفيل | E59: 35700 | F59: 0.85
A60: 0.9 | B60: 90 | C60: =+C59 -> 42000 | D60: البروفيل | E60: 37800 | F60: 0.9
A61: 0.95 | B61: 95 | C61: =+C60 -> 42000 | D61: البروفيل | E61: 39900 | F61: 0.95
A62: 1 | B62: 100 | C62: =+C61 -> 42000 | D62: البروفيل | E62: 42000 | F62: 1
A63: 0.05 | B63: 5 | C63: 6000 | D63: البوبات | E63: =+C63*A63 -> 300 | F63: 0.05
A64: 0.1 | B64: 10 | C64: =+C63 -> 6000 | D64: =+D63 -> البوبات | E64: =+C64*A64 -> 600 | F64: 0.1
A65: 0.15 | B65: 15 | C65: =+C64 -> 6000 | D65: البوبات | E65: 900 | F65: 0.15
A66: 0.2 | B66: 20 | C66: =+C65 -> 6000 | D66: البوبات | E66: 1200 | F66: 0.2
A67: 0.25 | B67: 25 | C67: =+C66 -> 6000 | D67: البوبات | E67: 1500 | F67: 0.25
A68: 0.3 | B68: 30 | C68: =+C67 -> 6000 | D68: البوبات | E68: 1800 | F68: 0.3
A69: 0.35 | B69: 35 | C69: =+C68 -> 6000 | D69: البوبات | E69: 2100 | F69: 0.35
A70: 0.4 | B70: 40 | C70: =+C69 -> 6000 | D70: البوبات | E70: 2400 | F70: 0.4
A71: 0.45 | B71: 45 | C71: =+C70 -> 6000 | D71: البوبات | E71: 2700 | F71: 0.45
A72: 0.5 | B72: 50 | C72: =+C71 -> 6000 | D72: البوبات | E72: 3000 | F72: 0.5
A73: 0.55 | B73: 55 | C73: =+C72 -> 6000 | D73: البوبات | E73: 3300 | F73: 0.55
A74: 0.6 | B74: 60 | C74: =+C73 -> 6000 | D74: البوبات | E74: 3600 | F74: 0.6
A75: 0.65 | B75: 65 | C75: =+C74 -> 6000 | D75: البوبات | E75: 3900 | F75: 0.65
A76: 0.7 | B76: 70 | C76: =+C75 -> 6000 | D76: البوبات | E76: 4200 | F76: 0.7
A77: 0.75 | B77: 75 | C77: =+C76 -> 6000 | D77: البوبات | E77: 4500 | F77: 0.75
A78: 0.8 | B78: 80 | C78: =+C77 -> 6000 | D78: البوبات | E78: 4800 | F78: 0.8
A79: 0.85 | B79: 85 | C79: =+C78 -> 6000 | D79: البوبات | E79: 5100 | F79: 0.85
A80: 0.9 | B80: 90 | C80: =+C79 -> 6000 | D80: البوبات | E80: 5400 | F80: 0.9
A81: 0.95 | B81: 95 | C81: =+C80 -> 6000 | D81: البوبات | E81: 5700 | F81: 0.95
A82: 1 | B82: 100 | C82: =+C81 -> 6000 | D82: البوبات | E82: 6000 | F82: 1
A83: 0.05 | B83: 5 | C83: 6000 | D83: النهايز | E83: =+C83*A83 -> 300 | F83: 0.05
A84: 0.1 | B84: 10 | C84: =+C83 -> 6000 | D84: =+D83 -> النهايز | E84: =+C84*A84 -> 600 | F84: 0.1
A85: 0.15 | B85: 15 | C85: =+C84 -> 6000 | D85: النهايز | E85: 900 | F85: 0.15
A86: 0.2 | B86: 20 | C86: =+C85 -> 6000 | D86: النهايز | E86: 1200 | F86: 0.2
A87: 0.25 | B87: 25 | C87: =+C86 -> 6000 | D87: النهايز | E87: 1500 | F87: 0.25
A88: 0.3 | B88: 30 | C88: =+C87 -> 6000 | D88: النهايز | E88: 1800 | F88: 0.3
A89: 0.35 | B89: 35 | C89: =+C88 -> 6000 | D89: النهايز | E89: 2100 | F89: 0.35
A90: 0.4 | B90: 40 | C90: =+C89 -> 6000 | D90: النهايز | E90: 2400 | F90: 0.4
A91: 0.45 | B91: 45 | C91: =+C90 -> 6000 | D91: النهايز | E91: 2700 | F91: 0.45
A92: 0.5 | B92: 50 | C92: =+C91 -> 6000 | D92: النهايز | E92: 3000 | F92: 0.5
A93: 0.55 | B93: 55 | C93: =+C92 -> 6000 | D93: النهايز | E93: 3300 | F93: 0.55
A94: 0.6 | B94: 60 | C94: =+C93 -> 6000 | D94: النهايز | E94: 3600 | F94: 0.6
A95: 0.65 | B95: 65 | C95: =+C94 -> 6000 | D95: النهايز | E95: 3900 | F95: 0.65
A96: 0.7 | B96: 70 | C96: =+C95 -> 6000 | D96: النهايز | E96: 4200 | F96: 0.7
A97: 0.75 | B97: 75 | C97: =+C96 -> 6000 | D97: النهايز | E97: 4500 | F97: 0.75
A98: 0.8 | B98: 80 | C98: =+C97 -> 6000 | D98: النهايز | E98: 4800 | F98: 0.8
A99: 0.85 | B99: 85 | C99: =+C98 -> 6000 | D99: النهايز | E99: 5100 | F99: 0.85
A100: 0.9 | B100: 90 | C100: =+C99 -> 6000 | D100: النهايز | E100: 5400 | F100: 0.9
A101: 0.95 | B101: 95 | C101: =+C100 -> 6000 | D101: النهايز | E101: 5700 | F101: 0.95
A102: 1 | B102: 100 | C102: =+C101 -> 6000 | D102: النهايز | E102: 6000 | F102: 1
A103: 0.05 | B103: 5 | C103: 6000 | D103: حامل ثمار | E103: =+C103*A103 -> 300 | F103: 0.05
A104: 0.1 | B104: 10 | C104: =+C103 -> 6000 | D104: =+D103 -> حامل ثمار | E104: =+C104*A104 -> 600 | F104: 0.1
A105: 0.15 | B105: 15 | C105: =+C104 -> 6000 | D105: حامل ثمار | E105: 900 | F105: 0.15
A106: 0.2 | B106: 20 | C106: =+C105 -> 6000 | D106: حامل ثمار | E106: 1200 | F106: 0.2
A107: 0.25 | B107: 25 | C107: =+C106 -> 6000 | D107: حامل ثمار | E107: 1500 | F107: 0.25
A108: 0.3 | B108: 30 | C108: =+C107 -> 6000 | D108: حامل ثمار | E108: 1800 | F108: 0.3
A109: 0.35 | B109: 35 | C109: =+C108 -> 6000 | D109: حامل ثمار | E109: 2100 | F109: 0.35
A110: 0.4 | B110: 40 | C110: =+C109 -> 6000 | D110: حامل ثمار | E110: 2400 | F110: 0.4
A111: 0.45 | B111: 45 | C111: =+C110 -> 6000 | D111: حامل ثمار | E111: 2700 | F111: 0.45
A112: 0.5 | B112: 50 | C112: =+C111 -> 6000 | D112: حامل ثمار | E112: 3000 | F112: 0.5
A113: 0.55 | B113: 55 | C113: =+C112 -> 6000 | D113: حامل ثمار | E113: 3300 | F113: 0.55
A114: 0.6 | B114: 60 | C114: =+C113 -> 6000 | D114: حامل ثمار | E114: 3600 | F114: 0.6
A115: 0.65 | B115: 65 | C115: =+C114 -> 6000 | D115: حامل ثمار | E115: 3900 | F115: 0.65
A116: 0.7 | B116: 70 | C116: =+C115 -> 6000 | D116: حامل ثمار | E116: 4200 | F116: 0.7
A117: 0.75 | B117: 75 | C117: =+C116 -> 6000 | D117: حامل ثمار | E117: 4500 | F117: 0.75
A118: 0.8 | B118: 80 | C118: =+C117 -> 6000 | D118: حامل ثمار | E118: 4800 | F118: 0.8
A119: 0.85 | B119: 85 | C119: =+C118 -> 6000 | D119: حامل ثمار | E119: 5100 | F119: 0.85
A120: 0.9 | B120: 90 | C120: =+C119 -> 6000 | D120: حامل ثمار | E120: 5400 | F120: 0.9
A121: 0.95 | B121: 95 | C121: =+C120 -> 6000 | D121: حامل ثمار | E121: 5700 | F121: 0.95
A122: 1 | B122: 100 | C122: =+C121 -> 6000 | D122: حامل ثمار | E122: 6000 | F122: 1
A123: 0.05 | B123: 5 | C123: 35000 | D123: أعمدة وجرابات | E123: =+C123*A11 -> 15750 | F123: 0.05
A124: 0.1 | B124: 10 | C124: =+C123 -> 35000 | D124: =+D123 -> أعمدة وجرابات | E124: =+C124*A12 -> 17500 | F124: 0.1
A125: 0.15 | B125: 15 | C125: =+C124 -> 35000 | D125: أعمدة وجرابات | E125: 19250 | F125: 0.15
A126: 0.2 | B126: 20 | C126: =+C125 -> 35000 | D126: أعمدة وجرابات | E126: 21000 | F126: 0.2
A127: 0.25 | B127: 25 | C127: =+C126 -> 35000 | D127: أعمدة وجرابات | E127: 22750 | F127: 0.25
A128: 0.3 | B128: 30 | C128: =+C127 -> 35000 | D128: أعمدة وجرابات | E128: 24500 | F128: 0.3
A129: 0.35 | B129: 35 | C129: =+C128 -> 35000 | D129: أعمدة وجرابات | E129: 26250 | F129: 0.35
A130: 0.4 | B130: 40 | C130: =+C129 -> 35000 | D130: أعمدة وجرابات | E130: 28000 | F130: 0.4
A131: 0.45 | B131: 45 | C131: =+C130 -> 35000 | D131: أعمدة وجرابات | E131: 29750 | F131: 0.45
A132: 0.5 | B132: 50 | C132: =+C131 -> 35000 | D132: أعمدة وجرابات | E132: 31500 | F132: 0.5
A133: 0.55 | B133: 55 | C133: =+C132 -> 35000 | D133: أعمدة وجرابات | E133: 33250 | F133: 0.55
A134: 0.6 | B134: 60 | C134: =+C133 -> 35000 | D134: أعمدة وجرابات | E134: 35000 | F134: 0.6
A135: 0.65 | B135: 65 | C135: =+C134 -> 35000 | D135: أعمدة وجرابات | E135: 1750 | F135: 0.65
A136: 0.7 | B136: 70 | C136: =+C135 -> 35000 | D136: أعمدة وجرابات | E136: 3500 | F136: 0.7
A137: 0.75 | B137: 75 | C137: =+C136 -> 35000 | D137: أعمدة وجرابات | E137: 5250 | F137: 0.75
A138: 0.8 | B138: 80 | C138: =+C137 -> 35000 | D138: أعمدة وجرابات | E138: 7000 | F138: 0.8
A139: 0.85 | B139: 85 | C139: =+C138 -> 35000 | D139: أعمدة وجرابات | E139: 8750 | F139: 0.85
A140: 0.9 | B140: 90 | C140: =+C139 -> 35000 | D140: أعمدة وجرابات | E140: 10500 | F140: 0.9
A141: 0.95 | B141: 95 | C141: =+C140 -> 35000 | D141: أعمدة وجرابات | E141: 12250 | F141: 0.95
A142: 1 | B142: 100 | C142: =+C141 -> 35000 | D142: أعمدة وجرابات | E142: 14000 | F142: 1
A143: 0.05 | B143: 5 | F143: 0.05
A144: 0.1 | B144: 10 | F144: 0.1
A145: 0.15 | B145: 15 | F145: 0.15
A146: 0.2 | B146: 20 | F146: 0.2
A147: 0.25 | B147: 25 | F147: 0.25
A148: 0.3 | B148: 30 | F148: 0.3
A149: 0.35 | B149: 35 | F149: 0.35
A150: 0.4 | B150: 40 | F150: 0.4
A151: 0.45 | B151: 45 | F151: 0.45
A152: 0.5 | B152: 50 | F152: 0.5
A153: 0.55 | B153: 55 | F153: 0.55
A154: 0.6 | B154: 60 | F154: 0.6
A155: 0.65 | B155: 65 | F155: 0.65
A156: 0.7 | B156: 70 | F156: 0.7
A157: 0.75 | B157: 75 | F157: 0.75
A158: 0.8 | B158: 80 | F158: 0.8
A159: 0.85 | B159: 85 | F159: 0.85
A160: 0.9 | B160: 90 | F160: 0.9
A161: 0.95 | B161: 95 | F161: 0.95
A162: 1 | B162: 100 | F162: 1

Sheet القائمة
A1: أسماء المقاولين | B1: الكلاستر | C1: الصوبة | D1: العملية | E1: =+E2-تفرير!I4 ->  | F1: المقاول | G1: المبلغ
A2: محمد سليمان | B2: E1 | C2: 1 | D2: =IFERROR(IF('النسب '!D3<>"",INDEX('النسب '!$D$3:$D$500,MATCH(0,COUNTIF($D$1:D1,'النسب '!$D$3:$D$500),0)),""),"") -> مجارى مطر وكمر وتدعيمات | E2: =SUM(G2:G22) ->  | F2: =+A2 -> محمد سليمان | G2: =SUMIF(الشغل!#REF!,$F2,الشغل!#REF!)+500 -> 
A3: احمد حلمى | B3: E2 | C3: 2 | D3: =IFERROR(IF('النسب '!D4<>"",INDEX('النسب '!$D$3:$D$500,MATCH(0,COUNTIF($D$1:D2,'النسب '!$D$3:$D$500),0)),""),"") -> الاقواس والمدادات | F3: =+A3 -> احمد حلمى | G3: =SUMIF(الشغل!#REF!,$F3,الشغل!#REF!) -> 
A4: سامى الغندور | B4: E3 | C4: 3 | D4: =IFERROR(IF('النسب '!D5<>"",INDEX('النسب '!$D$3:$D$500,MATCH(0,COUNTIF($D$1:D3,'النسب '!$D$3:$D$500),0)),""),"") -> البروفيل | F4: سامى الغندور | G4: =SUMIF(الشغل!#REF!,$F4,الشغل!#REF!) -> 
A5: حسين عبد العال | B5: E4 | C5: 4 | D5: =IFERROR(IF('النسب '!D6<>"",INDEX('النسب '!$D$3:$D$500,MATCH(0,COUNTIF($D$1:D4,'النسب '!$D$3:$D$500),0)),""),"") -> البوبات | F5: حسين عبد العال | G5: =SUMIF(الشغل!#REF!,$F5,الشغل!#REF!)-500 -> 
A6: عرفه محمود | B6: E5 | C6: 5 | D6: =IFERROR(IF('النسب '!D7<>"",INDEX('النسب '!$D$3:$D$500,MATCH(0,COUNTIF($D$1:D5,'النسب '!$D$3:$D$500),0)),""),"") -> النهايز | F6: عرفه محمود | G6: =SUMIF(الشغل!#REF!,$F6,الشغل!#REF!) -> 
A7: هيثم العايدى | B7: E6 | C7: 6 | D7: =IFERROR(IF('النسب '!D8<>"",INDEX('النسب '!$D$3:$D$500,MATCH(0,COUNTIF($D$1:D6,'النسب '!$D$3:$D$500),0)),""),"") -> حامل ثمار | F7: هيثم العايدى | G7: =SUMIF(الشغل!#REF!,$F7,الشغل!#REF!) -> 
A8: طاهر طارق | B8: E7 | C8: 7 | D8: =IFERROR(IF('النسب '!D9<>"",INDEX('النسب '!$D$3:$D$500,MATCH(0,COUNTIF($D$1:D7,'النسب '!$D$3:$D$500),0)),""),"") -> أعمدة وجرابات | F8: طاهر طارق | G8: =SUMIF(الشغل!#REF!,$F8,الشغل!#REF!) -> 
A9: محمد على البرى | B9: E8 | C9: 8 | F9: محمد على البرى | G9: =SUMIF(الشغل!#REF!,$F9,الشغل!#REF!) -> 
A10: شعبان الامام | B10: E9 | F10: شعبان الامام | G10: =SUMIF(الشغل!#REF!,$F10,الشغل!#REF!) -> 
A11: ياسر حماد | B11: E10 | F11: ياسر حماد | G11: =SUMIF(الشغل!#REF!,$F11,الشغل!#REF!) -> 
A12: ياسر هجرس | B12: E11 | F12: ياسر هجرس | G12: =SUMIF(الشغل!#REF!,$F12,الشغل!#REF!) -> 
A13: محمد عياد | B13: E12 | F13: محمد عياد | G13: =SUMIF(الشغل!#REF!,$F13,الشغل!#REF!) -> 
A14: ضياء على محمد | B14: E13 | F14: ضياء على محمد | G14: =SUMIF(الشغل!#REF!,$F14,الشغل!#REF!) -> 
A15: محمود فاروق | B15: E14 | F15: محمود فاروق | G15: =SUMIF(الشغل!#REF!,$F15,الشغل!#REF!) -> 
A16: محمد جمعه | B16: E15 | F16: محمد جمعه | G16: =SUMIF(الشغل!#REF!,$F16,الشغل!#REF!) -> 
A17: احمد فارس | B17: E16 | F17: احمد فارس | G17: =SUMIF(الشغل!#REF!,$F17,الشغل!#REF!) -> 
A18: السيد محمد على | B18: E17 | F18: السيد محمد على | G18: =SUMIF(الشغل!#REF!,$F18,الشغل!#REF!) -> 
A19: احمد كمال | B19: E18 | F19: =+A19 -> احمد كمال | G19: =SUMIF(الشغل!#REF!,$F19,الشغل!#REF!) -> 
A20: احمد مرعى | B20: E19 | F20: احمد مرعى | G20: =SUMIF(الشغل!#REF!,$F20,الشغل!#REF!) -> 
A21: فتحى زيدان سعيد | B21: E20 | F21: فتحى زيدان سعيد | G21: =SUMIF(الشغل!#REF!,$F21,الشغل!#REF!) -> 
A22: احمد عبد المنعم | B22: E21 | F22: احمد عبد المنعم | G22: =SUMIF(الشغل!#REF!,$F22,الشغل!#REF!) -> 
A23: ياسر ابو طالب | B23: E22 | F23: ياسر ابو طالب
A24: ناصر | B24: E23 | F24: ناصر
B25: E24
B26: E25
B27: E26
B28: E27
B29: E28
B30: E29
B31: E30
B32: E31
B33: E32
B34: E33
B35: E34
B36: E35
B37: E36
B38: E37
B39: E38
B40: E39
B41: E40
B42: E41
B43: E42
B44: E43
B45: E44
B46: E45
B47: E46

Sheet الشغل
I2: =SUBTOTAL(9,I5:I23) -> 39150
B4: التاريخ | C4: المقاول | D4: الكلاستر | E4: الصوبة | F4: عدد العمال | G4: العملية | H4: النسبة | I4: القيمة المستحقة
B5: 2019-06-26 | C5: احمد حلمى | D5: E1 | E5: 2 | F5: 0 | G5: مجارى مطر وكمر وتدعيمات | H5: 0.1 | I5: =IF(H5<>"",INDEX('النسب '!$E$3:$E$500,MATCH(1,INDEX((الشغل!H5='النسب '!$F$3:$F$500)*(الشغل!G5='النسب '!$D$3:$D$500),0,1),0)),"") -> 3200
B6: 2023-05-26 | C6: سامى الغندور | D6: E2 | E6: 3 | F6: 0 | G6: النهايز | H6: 0.05 | I6: =IF(H6<>"",INDEX('النسب '!$E$3:$E$500,MATCH(1,INDEX((الشغل!H6='النسب '!$F$3:$F$500)*(الشغل!G6='النسب '!$D$3:$D$500),0,1),0)),"") -> 300
B7: 2023-05-27 | C7: حسين عبد العال | D7: E3 | E7: 8 | F7: 0 | G7: مجارى مطر وكمر وتدعيمات | H7: 0.15 | I7: =IF(H7<>"",INDEX('النسب '!$E$3:$E$500,MATCH(1,INDEX((الشغل!H7='النسب '!$F$3:$F$500)*(الشغل!G7='النسب '!$D$3:$D$500),0,1),0)),"") -> 4800
B8: 2023-05-28 | C8: احمد فارس | D8: E5 | E8: 6 | F8: 0 | G8: البوبات | H8: 0.2 | I8: =IF(H8<>"",INDEX('النسب '!$E$3:$E$500,MATCH(1,INDEX((الشغل!H8='النسب '!$F$3:$F$500)*(الشغل!G8='النسب '!$D$3:$D$500),0,1),0)),"") -> 1200
B9: 2023-05-29 | C9: احمد حلمى | D9: E1 | E9: 2 | F9: 0 | G9: الاقواس والمدادات | H9: 0.1 | I9: =IF(H9<>"",INDEX('النسب '!$E$3:$E$500,MATCH(1,INDEX((الشغل!H9='النسب '!$F$3:$F$500)*(الشغل!G9='النسب '!$D$3:$D$500),0,1),0)),"") -> 4200
B10: 2023-05-30 | C10: سامى الغندور | D10: E2 | E10: 3 | F10: 0 | G10: أعمدة وجرابات | H10: 0.05 | I10: =IF(H10<>"",INDEX('النسب '!$E$3:$E$500,MATCH(1,INDEX((الشغل!H10='النسب '!$F$3:$F$500)*(الشغل!G10='النسب '!$D$3:$D$500),0,1),0)),"") -> 15750
B11: 2023-05-31 | C11: حسين عبد العال | D11: E3 | E11: 8 | F11: 0 | G11: النهايز | H11: 0.15 | I11: =IF(H11<>"",INDEX('النسب '!$E$3:$E$500,MATCH(1,INDEX((الشغل!H11='النسب '!$F$3:$F$500)*(الشغل!G11='النسب '!$D$3:$D$500),0,1),0)),"") -> 900
B12: 2023-06-01 | C12: احمد فارس | D12: E5 | E12: 6 | F12: 0 | G12: مجارى مطر وكمر وتدعيمات | H12: 0.2 | I12: =IF(H12<>"",INDEX('النسب '!$E$3:$E$500,MATCH(1,INDEX((الشغل!H12='النسب '!$F$3:$F$500)*(الشغل!G12='النسب '!$D$3:$D$500),0,1),0)),"") -> 6400
B13: 2023-06-02 | C13: سامى الغندور | D13: E2 | E13: 3 | F13: 0 | G13: البوبات | H13: 0.05 | I13: =IF(H13<>"",INDEX('النسب '!$E$3:$E$500,MATCH(1,INDEX((الشغل!H13='النسب '!$F$3:$F$500)*(الشغل!G13='النسب '!$D$3:$D$500),0,1),0)),"") -> 300
B14: 2023-06-03 | C14: حسين عبد العال | D14: E3 | E14: 8 | F14: 0 | G14: النهايز | H14: 0.15 | I14: =IF(H14<>"",INDEX('النسب '!$E$3:$E$500,MATCH(1,INDEX((الشغل!H14='النسب '!$F$3:$F$500)*(الشغل!G14='النسب '!$D$3:$D$500),0,1),0)),"") -> 900
B15: 2023-06-04 | C15: احمد فارس | D15: E5 | E15: 6 | F15: 0 | G15: البوبات | H15: 0.2 | I15: =IF(H15<>"",INDEX('النسب '!$E$3:$E$500,MATCH(1,INDEX((الشغل!H15='النسب '!$F$3:$F$500)*(الشغل!G15='النسب '!$D$3:$D$500),0,1),0)),"") -> 1200
I16: =IF(H16<>"",INDEX('النسب '!$E$3:$E$500,MATCH(1,INDEX((الشغل!H16='النسب '!$F$3:$F$500)*(الشغل!G16='النسب '!$D$3:$D$500),0,1),0)),"") -> 
I17: =IF(H17<>"",INDEX('النسب '!$E$3:$E$500,MATCH(1,INDEX((الشغل!H17='النسب '!$F$3:$F$500)*(الشغل!G17='النسب '!$D$3:$D$500),0,1),0)),"") -> 
I18: =IF(H18<>"",INDEX('النسب '!$E$3:$E$500,MATCH(1,INDEX((الشغل!H18='النسب '!$F$3:$F$500)*(الشغل!G18='النسب '!$D$3:$D$500),0,1),0)),"") -> 
I19: =IF(H19<>"",INDEX('النسب '!$E$3:$E$500,MATCH(1,INDEX((الشغل!H19='النسب '!$F$3:$F$500)*(الشغل!G19='النسب '!$D$3:$D$500),0,1),0)),"") -> 
I20: =IF(H20<>"",INDEX('النسب '!$E$3:$E$500,MATCH(1,INDEX((الشغل!H20='النسب '!$F$3:$F$500)*(الشغل!G20='النسب '!$D$3:$D$500),0,1),0)),"") -> 
I21: =IF(H21<>"",INDEX('النسب '!$E$3:$E$500,MATCH(1,INDEX((الشغل!H21='النسب '!$F$3:$F$500)*(الشغل!G21='النسب '!$D$3:$D$500),0,1),0)),"") -> 
I22: =IF(H22<>"",INDEX('النسب '!$E$3:$E$500,MATCH(1,INDEX((الشغل!H22='النسب '!$F$3:$F$500)*(الشغل!G22='النسب '!$D$3:$D$500),0,1),0)),"") -> 
I23: =IF(H23<>"",INDEX('النسب '!$E$3:$E$500,MATCH(1,INDEX((الشغل!H23='النسب '!$F$3:$F$500)*(الشغل!G23='النسب '!$D$3:$D$500),0,1),0)),"") -> 
I24: =IF(H24<>"",INDEX('النسب '!$E$3:$E$500,MATCH(1,INDEX((الشغل!H24='النسب '!$F$3:$F$500)*(الشغل!G24='النسب '!$D$3:$D$500),0,1),0)),"") -> 
I25: =IF(H25<>"",INDEX('النسب '!$E$3:$E$500,MATCH(1,INDEX((الشغل!H25='النسب '!$F$3:$F$500)*(الشغل!G25='النسب '!$D$3:$D$500),0,1),0)),"") -> 
I26: =IF(H26<>"",INDEX('النسب '!$E$3:$E$500,MATCH(1,INDEX((الشغل!H26='النسب '!$F$3:$F$500)*(الشغل!G26='النسب '!$D$3:$D$500),0,1),0)),"") -> 
I27: =IF(H27<>"",INDEX('النسب '!$E$3:$E$500,MATCH(1,INDEX((الشغل!H27='النسب '!$F$3:$F$500)*(الشغل!G27='النسب '!$D$3:$D$500),0,1),0)),"") -> 
I28: =IF(H28<>"",INDEX('النسب '!$E$3:$E$500,MATCH(1,INDEX((الشغل!H28='النسب '!$F$3:$F$500)*(الشغل!G28='النسب '!$D$3:$D$500),0,1),0)),"") -> 
I29: =IF(H29<>"",INDEX('النسب '!$E$3:$E$500,MATCH(1,INDEX((الشغل!H29='النسب '!$F$3:$F$500)*(الشغل!G29='النسب '!$D$3:$D$500),0,1),0)),"") -> 
I30: =IF(H30<>"",INDEX('النسب '!$E$3:$E$500,MATCH(1,INDEX((الشغل!H30='النسب '!$F$3:$F$500)*(الشغل!G30='النسب '!$D$3:$D$500),0,1),0)),"") -> 
I31: =IF(H31<>"",INDEX('النسب '!$E$3:$E$500,MATCH(1,INDEX((الشغل!H31='النسب '!$F$3:$F$500)*(الشغل!G31='النسب '!$D$3:$D$500),0,1),0)),"") -> 
I32: =IF(H32<>"",INDEX('النسب '!$E$3:$E$500,MATCH(1,INDEX((الشغل!H32='النسب '!$F$3:$F$500)*(الشغل!G32='النسب '!$D$3:$D$500),0,1),0)),"") -> 
I33: =IF(H33<>"",INDEX('النسب '!$E$3:$E$500,MATCH(1,INDEX((الشغل!H33='النسب '!$F$3:$F$500)*(الشغل!G33='النسب '!$D$3:$D$500),0,1),0)),"") -> 
I34: =IF(H34<>"",INDEX('النسب '!$E$3:$E$500,MATCH(1,INDEX((الشغل!H34='النسب '!$F$3:$F$500)*(الشغل!G34='النسب '!$D$3:$D$500),0,1),0)),"") -> 
I35: =IF(H35<>"",INDEX('النسب '!$E$3:$E$500,MATCH(1,INDEX((الشغل!H35='النسب '!$F$3:$F$500)*(الشغل!G35='النسب '!$D$3:$D$500),0,1),0)),"") -> 
I36: =IF(H36<>"",INDEX('النسب '!$E$3:$E$500,MATCH(1,INDEX((الشغل!H36='النسب '!$F$3:$F$500)*(الشغل!G36='النسب '!$D$3:$D$500),0,1),0)),"") -> 
I37: =IF(H37<>"",INDEX('النسب '!$E$3:$E$500,MATCH(1,INDEX((الشغل!H37='النسب '!$F$3:$F$500)*(الشغل!G37='النسب '!$D$3:$D$500),0,1),0)),"") -> 
I38: =IF(H38<>"",INDEX('النسب '!$E$3:$E$500,MATCH(1,INDEX((الشغل!H38='النسب '!$F$3:$F$500)*(الشغل!G38='النسب '!$D$3:$D$500),0,1),0)),"") -> 
I39: =IF(H39<>"",INDEX('النسب '!$E$3:$E$500,MATCH(1,INDEX((الشغل!H39='النسب '!$F$3:$F$500)*(الشغل!G39='النسب '!$D$3:$D$500),0,1),0)),"") -> 
I40: =IF(H40<>"",INDEX('النسب '!$E$3:$E$500,MATCH(1,INDEX((الشغل!H40='النسب '!$F$3:$F$500)*(الشغل!G40='النسب '!$D$3:$D$500),0,1),0)),"") -> 
I41: =IF(H41<>"",INDEX('النسب '!$E$3:$E$500,MATCH(1,INDEX((الشغل!H41='النسب '!$F$3:$F$500)*(الشغل!G41='النسب '!$D$3:$D$500),0,1),0)),"") -> 
I42: =IF(H42<>"",INDEX('النسب '!$E$3:$E$500,MATCH(1,INDEX((الشغل!H42='النسب '!$F$3:$F$500)*(الشغل!G42='النسب '!$D$3:$D$500),0,1),0)),"") -> 
I43: =IF(H43<>"",INDEX('النسب '!$E$3:$E$500,MATCH(1,INDEX((الشغل!H43='النسب '!$F$3:$F$500)*(الشغل!G43='النسب '!$D$3:$D$500),0,1),0)),"") -> 
I44: =IF(H44<>"",INDEX('النسب '!$E$3:$E$500,MATCH(1,INDEX((الشغل!H44='النسب '!$F$3:$F$500)*(الشغل!G44='النسب '!$D$3:$D$500),0,1),0)),"") -> 
I45: =IF(H45<>"",INDEX('النسب '!$E$3:$E$500,MATCH(1,INDEX((الشغل!H45='النسب '!$F$3:$F$500)*(الشغل!G45='النسب '!$D$3:$D$500),0,1),0)),"") -> 
I46: =IF(H46<>"",INDEX('النسب '!$E$3:$E$500,MATCH(1,INDEX((الشغل!H46='النسب '!$F$3:$F$500)*(الشغل!G46='النسب '!$D$3:$D$500),0,1),0)),"") -> 
I47: =IF(H47<>"",INDEX('النسب '!$E$3:$E$500,MATCH(1,INDEX((الشغل!H47='النسب '!$F$3:$F$500)*(الشغل!G47='النسب '!$D$3:$D$500),0,1),0)),"") -> 
I48: =IF(H48<>"",INDEX('النسب '!$E$3:$E$500,MATCH(1,INDEX((الشغل!H48='النسب '!$F$3:$F$500)*(الشغل!G48='النسب '!$D$3:$D$500),0,1),0)),"") -> 
I49: =IF(H49<>"",INDEX('النسب '!$E$3:$E$500,MATCH(1,INDEX((الشغل!H49='النسب '!$F$3:$F$500)*(الشغل!G49='النسب '!$D$3:$D$500),0,1),0)),"") -> 
I50: =IF(H50<>"",INDEX('النسب '!$E$3:$E$500,MATCH(1,INDEX((الشغل!H50='النسب '!$F$3:$F$500)*(الشغل!G50='النسب '!$D$3:$D$500),0,1),0)),"") -> 
I51: =IF(H51<>"",INDEX('النسب '!$E$3:$E$500,MATCH(1,INDEX((الشغل!H51='النسب '!$F$3:$F$500)*(الشغل!G51='النسب '!$D$3:$D$500),0,1),0)),"") -> 
I52: =IF(H52<>"",INDEX('النسب '!$E$3:$E$500,MATCH(1,INDEX((الشغل!H52='النسب '!$F$3:$F$500)*(الشغل!G52='النسب '!$D$3:$D$500),0,1),0)),"") -> 
I53: =IF(H53<>"",INDEX('النسب '!$E$3:$E$500,MATCH(1,INDEX((الشغل!H53='النسب '!$F$3:$F$500)*(الشغل!G53='النسب '!$D$3:$D$500),0,1),0)),"") -> 
I54: =IF(H54<>"",INDEX('النسب '!$E$3:$E$500,MATCH(1,INDEX((الشغل!H54='النسب '!$F$3:$F$500)*(الشغل!G54='النسب '!$D$3:$D$500),0,1),0)),"") -> 
I55: =IF(H55<>"",INDEX('النسب '!$E$3:$E$500,MATCH(1,INDEX((الشغل!H55='النسب '!$F$3:$F$500)*(الشغل!G55='النسب '!$D$3:$D$500),0,1),0)),"") -> 
I56: =IF(H56<>"",INDEX('النسب '!$E$3:$E$500,MATCH(1,INDEX((الشغل!H56='النسب '!$F$3:$F$500)*(الشغل!G56='النسب '!$D$3:$D$500),0,1),0)),"") -> 
I57: =IF(H57<>"",INDEX('النسب '!$E$3:$E$500,MATCH(1,INDEX((الشغل!H57='النسب '!$F$3:$F$500)*(الشغل!G57='النسب '!$D$3:$D$500),0,1),0)),"") -> 
I58: =IF(H58<>"",INDEX('النسب '!$E$3:$E$500,MATCH(1,INDEX((الشغل!H58='النسب '!$F$3:$F$500)*(الشغل!G58='النسب '!$D$3:$D$500),0,1),0)),"") -> 
I59: =IF(H59<>"",INDEX('النسب '!$E$3:$E$500,MATCH(1,INDEX((الشغل!H59='النسب '!$F$3:$F$500)*(الشغل!G59='النسب '!$D$3:$D$500),0,1),0)),"") -> 
I60: =IF(H60<>"",INDEX('النسب '!$E$3:$E$500,MATCH(1,INDEX((الشغل!H60='النسب '!$F$3:$F$500)*(الشغل!G60='النسب '!$D$3:$D$500),0,1),0)),"") -> 
I61: =IF(H61<>"",INDEX('النسب '!$E$3:$E$500,MATCH(1,INDEX((الشغل!H61='النسب '!$F$3:$F$500)*(الشغل!G61='النسب '!$D$3:$D$500),0,1),0)),"") -> 
I62: =IF(H62<>"",INDEX('النسب '!$E$3:$E$500,MATCH(1,INDEX((الشغل!H62='النسب '!$F$3:$F$500)*(الشغل!G62='النسب '!$D$3:$D$500),0,1),0)),"") -> 
I63: =IF(H63<>"",INDEX('النسب '!$E$3:$E$500,MATCH(1,INDEX((الشغل!H63='النسب '!$F$3:$F$500)*(الشغل!G63='النسب '!$D$3:$D$500),0,1),0)),"") ->  | M63: =15000*60/100 -> 9000
I64: =IF(H64<>"",INDEX('النسب '!$E$3:$E$500,MATCH(1,INDEX((الشغل!H64='النسب '!$F$3:$F$500)*(الشغل!G64='النسب '!$D$3:$D$500),0,1),0)),"") -> 
I65: =IF(H65<>"",INDEX('النسب '!$E$3:$E$500,MATCH(1,INDEX((الشغل!H65='النسب '!$F$3:$F$500)*(الشغل!G65='النسب '!$D$3:$D$500),0,1),0)),"") -> 
I66: =IF(H66<>"",INDEX('النسب '!$E$3:$E$500,MATCH(1,INDEX((الشغل!H66='النسب '!$F$3:$F$500)*(الشغل!G66='النسب '!$D$3:$D$500),0,1),0)),"") -> 
I67: =IF(H67<>"",INDEX('النسب '!$E$3:$E$500,MATCH(1,INDEX((الشغل!H67='النسب '!$F$3:$F$500)*(الشغل!G67='النسب '!$D$3:$D$500),0,1),0)),"") -> 
I68: =IF(H68<>"",INDEX('النسب '!$E$3:$E$500,MATCH(1,INDEX((الشغل!H68='النسب '!$F$3:$F$500)*(الشغل!G68='النسب '!$D$3:$D$500),0,1),0)),"") -> 
I69: =IF(H69<>"",INDEX('النسب '!$E$3:$E$500,MATCH(1,INDEX((الشغل!H69='النسب '!$F$3:$F$500)*(الشغل!G69='النسب '!$D$3:$D$500),0,1),0)),"") -> 
I70: =IF(H70<>"",INDEX('النسب '!$E$3:$E$500,MATCH(1,INDEX((الشغل!H70='النسب '!$F$3:$F$500)*(الشغل!G70='النسب '!$D$3:$D$500),0,1),0)),"") -> 
I71: =IF(H71<>"",INDEX('النسب '!$E$3:$E$500,MATCH(1,INDEX((الشغل!H71='النسب '!$F$3:$F$500)*(الشغل!G71='النسب '!$D$3:$D$500),0,1),0)),"") -> 
I72: =IF(H72<>"",INDEX('النسب '!$E$3:$E$500,MATCH(1,INDEX((الشغل!H72='النسب '!$F$3:$F$500)*(الشغل!G72='النسب '!$D$3:$D$500),0,1),0)),"") -> 
I73: =IF(H73<>"",INDEX('النسب '!$E$3:$E$500,MATCH(1,INDEX((الشغل!H73='النسب '!$F$3:$F$500)*(الشغل!G73='النسب '!$D$3:$D$500),0,1),0)),"") -> 
I74: =IF(H74<>"",INDEX('النسب '!$E$3:$E$500,MATCH(1,INDEX((الشغل!H74='النسب '!$F$3:$F$500)*(الشغل!G74='النسب '!$D$3:$D$500),0,1),0)),"") -> 
I75: =IF(H75<>"",INDEX('النسب '!$E$3:$E$500,MATCH(1,INDEX((الشغل!H75='النسب '!$F$3:$F$500)*(الشغل!G75='النسب '!$D$3:$D$500),0,1),0)),"") -> 
I76: =IF(H76<>"",INDEX('النسب '!$E$3:$E$500,MATCH(1,INDEX((الشغل!H76='النسب '!$F$3:$F$500)*(الشغل!G76='النسب '!$D$3:$D$500),0,1),0)),"") -> 
I77: =IF(H77<>"",INDEX('النسب '!$E$3:$E$500,MATCH(1,INDEX((الشغل!H77='النسب '!$F$3:$F$500)*(الشغل!G77='النسب '!$D$3:$D$500),0,1),0)),"") ->  | M77: =590+1110 -> 1700
I78: =IF(H78<>"",INDEX('النسب '!$E$3:$E$500,MATCH(1,INDEX((الشغل!H78='النسب '!$F$3:$F$500)*(الشغل!G78='النسب '!$D$3:$D$500),0,1),0)),"") -> 
I79: =IF(H79<>"",INDEX('النسب '!$E$3:$E$500,MATCH(1,INDEX((الشغل!H79='النسب '!$F$3:$F$500)*(الشغل!G79='النسب '!$D$3:$D$500),0,1),0)),"") -> 
I80: =IF(H80<>"",INDEX('النسب '!$E$3:$E$500,MATCH(1,INDEX((الشغل!H80='النسب '!$F$3:$F$500)*(الشغل!G80='النسب '!$D$3:$D$500),0,1),0)),"") -> 
I81: =IF(H81<>"",INDEX('النسب '!$E$3:$E$500,MATCH(1,INDEX((الشغل!H81='النسب '!$F$3:$F$500)*(الشغل!G81='النسب '!$D$3:$D$500),0,1),0)),"") -> 
I82: =IF(H82<>"",INDEX('النسب '!$E$3:$E$500,MATCH(1,INDEX((الشغل!H82='النسب '!$F$3:$F$500)*(الشغل!G82='النسب '!$D$3:$D$500),0,1),0)),"") -> 
I83: =IF(H83<>"",INDEX('النسب '!$E$3:$E$500,MATCH(1,INDEX((الشغل!H83='النسب '!$F$3:$F$500)*(الشغل!G83='النسب '!$D$3:$D$500),0,1),0)),"") -> 
I84: =IF(H84<>"",INDEX('النسب '!$E$3:$E$500,MATCH(1,INDEX((الشغل!H84='النسب '!$F$3:$F$500)*(الشغل!G84='النسب '!$D$3:$D$500),0,1),0)),"") -> 
I85: =IF(H85<>"",INDEX('النسب '!$E$3:$E$500,MATCH(1,INDEX((الشغل!H85='النسب '!$F$3:$F$500)*(الشغل!G85='النسب '!$D$3:$D$500),0,1),0)),"") -> 
I86: =IF(H86<>"",INDEX('النسب '!$E$3:$E$500,MATCH(1,INDEX((الشغل!H86='النسب '!$F$3:$F$500)*(الشغل!G86='النسب '!$D$3:$D$500),0,1),0)),"") -> 
I87: =IF(H87<>"",INDEX('النسب '!$E$3:$E$500,MATCH(1,INDEX((الشغل!H87='النسب '!$F$3:$F$500)*(الشغل!G87='النسب '!$D$3:$D$500),0,1),0)),"") -> 
I88: =IF(H88<>"",INDEX('النسب '!$E$3:$E$500,MATCH(1,INDEX((الشغل!H88='النسب '!$F$3:$F$500)*(الشغل!G88='النسب '!$D$3:$D$500),0,1),0)),"") -> 
I89: =IF(H89<>"",INDEX('النسب '!$E$3:$E$500,MATCH(1,INDEX((الشغل!H89='النسب '!$F$3:$F$500)*(الشغل!G89='النسب '!$D$3:$D$500),0,1),0)),"") -> 
I90: =IF(H90<>"",INDEX('النسب '!$E$3:$E$500,MATCH(1,INDEX((الشغل!H90='النسب '!$F$3:$F$500)*(الشغل!G90='النسب '!$D$3:$D$500),0,1),0)),"") -> 
I91: =IF(H91<>"",INDEX('النسب '!$E$3:$E$500,MATCH(1,INDEX((الشغل!H91='النسب '!$F$3:$F$500)*(الشغل!G91='النسب '!$D$3:$D$500),0,1),0)),"") -> 
I92: =IF(H92<>"",INDEX('النسب '!$E$3:$E$500,MATCH(1,INDEX((الشغل!H92='النسب '!$F$3:$F$500)*(الشغل!G92='النسب '!$D$3:$D$500),0,1),0)),"") ->  | L92: 22000 | M92: 16000 | N92: =+M92/$L$92*100 -> 72.72727273
I93: =IF(H93<>"",INDEX('النسب '!$E$3:$E$500,MATCH(1,INDEX((الشغل!H93='النسب '!$F$3:$F$500)*(الشغل!G93='النسب '!$D$3:$D$500),0,1),0)),"") ->  | M93: =+L92-M92 -> 6000 | N93: =+M93/$L$92*100 -> 27.27272727
I94: =IF(H94<>"",INDEX('النسب '!$E$3:$E$500,MATCH(1,INDEX((الشغل!H94='النسب '!$F$3:$F$500)*(الشغل!G94='النسب '!$D$3:$D$500),0,1),0)),"") -> 
I95: =IF(H95<>"",INDEX('النسب '!$E$3:$E$500,MATCH(1,INDEX((الشغل!H95='النسب '!$F$3:$F$500)*(الشغل!G95='النسب '!$D$3:$D$500),0,1),0)),"") ->  | M95: =+M93*40/100 -> 2400 | N95: =+M95/L92*100 -> 10.90909091
I96: =IF(H96<>"",INDEX('النسب '!$E$3:$E$500,MATCH(1,INDEX((الشغل!H96='النسب '!$F$3:$F$500)*(الشغل!G96='النسب '!$D$3:$D$500),0,1),0)),"") -> 
I97: =IF(H97<>"",INDEX('النسب '!$E$3:$E$500,MATCH(1,INDEX((الشغل!H97='النسب '!$F$3:$F$500)*(الشغل!G97='النسب '!$D$3:$D$500),0,1),0)),"") -> 
I98: =IF(H98<>"",INDEX('النسب '!$E$3:$E$500,MATCH(1,INDEX((الشغل!H98='النسب '!$F$3:$F$500)*(الشغل!G98='النسب '!$D$3:$D$500),0,1),0)),"") -> 
I99: =IF(H99<>"",INDEX('النسب '!$E$3:$E$500,MATCH(1,INDEX((الشغل!H99='النسب '!$F$3:$F$500)*(الشغل!G99='النسب '!$D$3:$D$500),0,1),0)),"") -> 
I100: =IF(H100<>"",INDEX('النسب '!$E$3:$E$500,MATCH(1,INDEX((الشغل!H100='النسب '!$F$3:$F$500)*(الشغل!G100='النسب '!$D$3:$D$500),0,1),0)),"") -> 
I101: =IF(H101<>"",INDEX('النسب '!$E$3:$E$500,MATCH(1,INDEX((الشغل!H101='النسب '!$F$3:$F$500)*(الشغل!G101='النسب '!$D$3:$D$500),0,1),0)),"") -> 
I102: =IF(H102<>"",INDEX('النسب '!$E$3:$E$500,MATCH(1,INDEX((الشغل!H102='النسب '!$F$3:$F$500)*(الشغل!G102='النسب '!$D$3:$D$500),0,1),0)),"") -> 
I103: =IF(H103<>"",INDEX('النسب '!$E$3:$E$500,MATCH(1,INDEX((الشغل!H103='النسب '!$F$3:$F$500)*(الشغل!G103='النسب '!$D$3:$D$500),0,1),0)),"") -> 
I104: =IF(H104<>"",INDEX('النسب '!$E$3:$E$500,MATCH(1,INDEX((الشغل!H104='النسب '!$F$3:$F$500)*(الشغل!G104='النسب '!$D$3:$D$500),0,1),0)),"") -> 
I105: =IF(H105<>"",INDEX('النسب '!$E$3:$E$500,MATCH(1,INDEX((الشغل!H105='النسب '!$F$3:$F$500)*(الشغل!G105='النسب '!$D$3:$D$500),0,1),0)),"") -> 
I106: =IF(H106<>"",INDEX('النسب '!$E$3:$E$500,MATCH(1,INDEX((الشغل!H106='النسب '!$F$3:$F$500)*(الشغل!G106='النسب '!$D$3:$D$500),0,1),0)),"") -> 
I107: =IF(H107<>"",INDEX('النسب '!$E$3:$E$500,MATCH(1,INDEX((الشغل!H107='النسب '!$F$3:$F$500)*(الشغل!G107='النسب '!$D$3:$D$500),0,1),0)),"") -> 
I108: =IF(H108<>"",INDEX('النسب '!$E$3:$E$500,MATCH(1,INDEX((الشغل!H108='النسب '!$F$3:$F$500)*(الشغل!G108='النسب '!$D$3:$D$500),0,1),0)),"") -> 
I109: =IF(H109<>"",INDEX('النسب '!$E$3:$E$500,MATCH(1,INDEX((الشغل!H109='النسب '!$F$3:$F$500)*(الشغل!G109='النسب '!$D$3:$D$500),0,1),0)),"") -> 
I110: =IF(H110<>"",INDEX('النسب '!$E$3:$E$500,MATCH(1,INDEX((الشغل!H110='النسب '!$F$3:$F$500)*(الشغل!G110='النسب '!$D$3:$D$500),0,1),0)),"") -> 
I111: =IF(H111<>"",INDEX('النسب '!$E$3:$E$500,MATCH(1,INDEX((الشغل!H111='النسب '!$F$3:$F$500)*(الشغل!G111='النسب '!$D$3:$D$500),0,1),0)),"") -> 
I112: =IF(H112<>"",INDEX('النسب '!$E$3:$E$500,MATCH(1,INDEX((الشغل!H112='النسب '!$F$3:$F$500)*(الشغل!G112='النسب '!$D$3:$D$500),0,1),0)),"") -> 
I113: =IF(H113<>"",INDEX('النسب '!$E$3:$E$500,MATCH(1,INDEX((الشغل!H113='النسب '!$F$3:$F$500)*(الشغل!G113='النسب '!$D$3:$D$500),0,1),0)),"") -> 
I114: =IF(H114<>"",INDEX('النسب '!$E$3:$E$500,MATCH(1,INDEX((الشغل!H114='النسب '!$F$3:$F$500)*(الشغل!G114='النسب '!$D$3:$D$500),0,1),0)),"") -> 
I115: =IF(H115<>"",INDEX('النسب '!$E$3:$E$500,MATCH(1,INDEX((الشغل!H115='النسب '!$F$3:$F$500)*(الشغل!G115='النسب '!$D$3:$D$500),0,1),0)),"") -> 
I116: =IF(H116<>"",INDEX('النسب '!$E$3:$E$500,MATCH(1,INDEX((الشغل!H116='النسب '!$F$3:$F$500)*(الشغل!G116='النسب '!$D$3:$D$500),0,1),0)),"") -> 
I117: =IF(H117<>"",INDEX('النسب '!$E$3:$E$500,MATCH(1,INDEX((الشغل!H117='النسب '!$F$3:$F$500)*(الشغل!G117='النسب '!$D$3:$D$500),0,1),0)),"") -> 
I118: =IF(H118<>"",INDEX('النسب '!$E$3:$E$500,MATCH(1,INDEX((الشغل!H118='النسب '!$F$3:$F$500)*(الشغل!G118='النسب '!$D$3:$D$500),0,1),0)),"") -> 
I119: =IF(H119<>"",INDEX('النسب '!$E$3:$E$500,MATCH(1,INDEX((الشغل!H119='النسب '!$F$3:$F$500)*(الشغل!G119='النسب '!$D$3:$D$500),0,1),0)),"") -> 
I120: =IF(H120<>"",INDEX('النسب '!$E$3:$E$500,MATCH(1,INDEX((الشغل!H120='النسب '!$F$3:$F$500)*(الشغل!G120='النسب '!$D$3:$D$500),0,1),0)),"") -> 
I121: =IF(H121<>"",INDEX('النسب '!$E$3:$E$500,MATCH(1,INDEX((الشغل!H121='النسب '!$F$3:$F$500)*(الشغل!G121='النسب '!$D$3:$D$500),0,1),0)),"") -> 
I122: =IF(H122<>"",INDEX('النسب '!$E$3:$E$500,MATCH(1,INDEX((الشغل!H122='النسب '!$F$3:$F$500)*(الشغل!G122='النسب '!$D$3:$D$500),0,1),0)),"") -> 
I123: =IF(H123<>"",INDEX('النسب '!$E$3:$E$500,MATCH(1,INDEX((الشغل!H123='النسب '!$F$3:$F$500)*(الشغل!G123='النسب '!$D$3:$D$500),0,1),0)),"") -> 
I124: =IF(H124<>"",INDEX('النسب '!$E$3:$E$500,MATCH(1,INDEX((الشغل!H124='النسب '!$F$3:$F$500)*(الشغل!G124='النسب '!$D$3:$D$500),0,1),0)),"") -> 
I125: =IF(H125<>"",INDEX('النسب '!$E$3:$E$500,MATCH(1,INDEX((الشغل!H125='النسب '!$F$3:$F$500)*(الشغل!G125='النسب '!$D$3:$D$500),0,1),0)),"") -> 
I126: =IF(H126<>"",INDEX('النسب '!$E$3:$E$500,MATCH(1,INDEX((الشغل!H126='النسب '!$F$3:$F$500)*(الشغل!G126='النسب '!$D$3:$D$500),0,1),0)),"") -> 
I127: =IF(H127<>"",INDEX('النسب '!$E$3:$E$500,MATCH(1,INDEX((الشغل!H127='النسب '!$F$3:$F$500)*(الشغل!G127='النسب '!$D$3:$D$500),0,1),0)),"") -> 
I128: =IF(H128<>"",INDEX('النسب '!$E$3:$E$500,MATCH(1,INDEX((الشغل!H128='النسب '!$F$3:$F$500)*(الشغل!G128='النسب '!$D$3:$D$500),0,1),0)),"") -> 
I129: =IF(H129<>"",INDEX('النسب '!$E$3:$E$500,MATCH(1,INDEX((الشغل!H129='النسب '!$F$3:$F$500)*(الشغل!G129='النسب '!$D$3:$D$500),0,1),0)),"") -> 
I130: =IF(H130<>"",INDEX('النسب '!$E$3:$E$500,MATCH(1,INDEX((الشغل!H130='النسب '!$F$3:$F$500)*(الشغل!G130='النسب '!$D$3:$D$500),0,1),0)),"") -> 
I131: =IF(H131<>"",INDEX('النسب '!$E$3:$E$500,MATCH(1,INDEX((الشغل!H131='النسب '!$F$3:$F$500)*(الشغل!G131='النسب '!$D$3:$D$500),0,1),0)),"") -> 
I132: =IF(H132<>"",INDEX('النسب '!$E$3:$E$500,MATCH(1,INDEX((الشغل!H132='النسب '!$F$3:$F$500)*(الشغل!G132='النسب '!$D$3:$D$500),0,1),0)),"") -> 
I133: =IF(H133<>"",INDEX('النسب '!$E$3:$E$500,MATCH(1,INDEX((الشغل!H133='النسب '!$F$3:$F$500)*(الشغل!G133='النسب '!$D$3:$D$500),0,1),0)),"") -> 
I134: =IF(H134<>"",INDEX('النسب '!$E$3:$E$500,MATCH(1,INDEX((الشغل!H134='النسب '!$F$3:$F$500)*(الشغل!G134='النسب '!$D$3:$D$500),0,1),0)),"") -> 
I135: =IF(H135<>"",INDEX('النسب '!$E$3:$E$500,MATCH(1,INDEX((الشغل!H135='النسب '!$F$3:$F$500)*(الشغل!G135='النسب '!$D$3:$D$500),0,1),0)),"") -> 
I136: =IF(H136<>"",INDEX('النسب '!$E$3:$E$500,MATCH(1,INDEX((الشغل!H136='النسب '!$F$3:$F$500)*(الشغل!G136='النسب '!$D$3:$D$500),0,1),0)),"") -> 
I137: =IF(H137<>"",INDEX('النسب '!$E$3:$E$500,MATCH(1,INDEX((الشغل!H137='النسب '!$F$3:$F$500)*(الشغل!G137='النسب '!$D$3:$D$500),0,1),0)),"") -> 
I138: =IF(H138<>"",INDEX('النسب '!$E$3:$E$500,MATCH(1,INDEX((الشغل!H138='النسب '!$F$3:$F$500)*(الشغل!G138='النسب '!$D$3:$D$500),0,1),0)),"") -> 
I139: =IF(H139<>"",INDEX('النسب '!$E$3:$E$500,MATCH(1,INDEX((الشغل!H139='النسب '!$F$3:$F$500)*(الشغل!G139='النسب '!$D$3:$D$500),0,1),0)),"") -> 
I140: =IF(H140<>"",INDEX('النسب '!$E$3:$E$500,MATCH(1,INDEX((الشغل!H140='النسب '!$F$3:$F$500)*(الشغل!G140='النسب '!$D$3:$D$500),0,1),0)),"") -> 
I141: =IF(H141<>"",INDEX('النسب '!$E$3:$E$500,MATCH(1,INDEX((الشغل!H141='النسب '!$F$3:$F$500)*(الشغل!G141='النسب '!$D$3:$D$500),0,1),0)),"") -> 
I142: =IF(H142<>"",INDEX('النسب '!$E$3:$E$500,MATCH(1,INDEX((الشغل!H142='النسب '!$F$3:$F$500)*(الشغل!G142='النسب '!$D$3:$D$500),0,1),0)),"") -> 
I143: =IF(H143<>"",INDEX('النسب '!$E$3:$E$500,MATCH(1,INDEX((الشغل!H143='النسب '!$F$3:$F$500)*(الشغل!G143='النسب '!$D$3:$D$500),0,1),0)),"") -> 
I144: =IF(H144<>"",INDEX('النسب '!$E$3:$E$500,MATCH(1,INDEX((الشغل!H144='النسب '!$F$3:$F$500)*(الشغل!G144='النسب '!$D$3:$D$500),0,1),0)),"") -> 
I145: =IF(H145<>"",INDEX('النسب '!$E$3:$E$500,MATCH(1,INDEX((الشغل!H145='النسب '!$F$3:$F$500)*(الشغل!G145='النسب '!$D$3:$D$500),0,1),0)),"") -> 
I146: =IF(H146<>"",INDEX('النسب '!$E$3:$E$500,MATCH(1,INDEX((الشغل!H146='النسب '!$F$3:$F$500)*(الشغل!G146='النسب '!$D$3:$D$500),0,1),0)),"") -> 
I147: =IF(H147<>"",INDEX('النسب '!$E$3:$E$500,MATCH(1,INDEX((الشغل!H147='النسب '!$F$3:$F$500)*(الشغل!G147='النسب '!$D$3:$D$500),0,1),0)),"") -> 
I148: =IF(H148<>"",INDEX('النسب '!$E$3:$E$500,MATCH(1,INDEX((الشغل!H148='النسب '!$F$3:$F$500)*(الشغل!G148='النسب '!$D$3:$D$500),0,1),0)),"") -> 
I149: =IF(H149<>"",INDEX('النسب '!$E$3:$E$500,MATCH(1,INDEX((الشغل!H149='النسب '!$F$3:$F$500)*(الشغل!G149='النسب '!$D$3:$D$500),0,1),0)),"") ->  | N149: =292750-307700 -> -14950
I150: =IF(H150<>"",INDEX('النسب '!$E$3:$E$500,MATCH(1,INDEX((الشغل!H150='النسب '!$F$3:$F$500)*(الشغل!G150='النسب '!$D$3:$D$500),0,1),0)),"") -> 
I151: =IF(H151<>"",INDEX('النسب '!$E$3:$E$500,MATCH(1,INDEX((الشغل!H151='النسب '!$F$3:$F$500)*(الشغل!G151='النسب '!$D$3:$D$500),0,1),0)),"") -> 
I152: =IF(H152<>"",INDEX('النسب '!$E$3:$E$500,MATCH(1,INDEX((الشغل!H152='النسب '!$F$3:$F$500)*(الشغل!G152='النسب '!$D$3:$D$500),0,1),0)),"") -> 
I153: =IF(H153<>"",INDEX('النسب '!$E$3:$E$500,MATCH(1,INDEX((الشغل!H153='النسب '!$F$3:$F$500)*(الشغل!G153='النسب '!$D$3:$D$500),0,1),0)),"") -> 
I154: =IF(H154<>"",INDEX('النسب '!$E$3:$E$500,MATCH(1,INDEX((الشغل!H154='النسب '!$F$3:$F$500)*(الشغل!G154='النسب '!$D$3:$D$500),0,1),0)),"") -> 
I155: =IF(H155<>"",INDEX('النسب '!$E$3:$E$500,MATCH(1,INDEX((الشغل!H155='النسب '!$F$3:$F$500)*(الشغل!G155='النسب '!$D$3:$D$500),0,1),0)),"") -> 
I156: =IF(H156<>"",INDEX('النسب '!$E$3:$E$500,MATCH(1,INDEX((الشغل!H156='النسب '!$F$3:$F$500)*(الشغل!G156='النسب '!$D$3:$D$500),0,1),0)),"") -> 
I157: =IF(H157<>"",INDEX('النسب '!$E$3:$E$500,MATCH(1,INDEX((الشغل!H157='النسب '!$F$3:$F$500)*(الشغل!G157='النسب '!$D$3:$D$500),0,1),0)),"") -> 
I158: =IF(H158<>"",INDEX('النسب '!$E$3:$E$500,MATCH(1,INDEX((الشغل!H158='النسب '!$F$3:$F$500)*(الشغل!G158='النسب '!$D$3:$D$500),0,1),0)),"") -> 
I159: =IF(H159<>"",INDEX('النسب '!$E$3:$E$500,MATCH(1,INDEX((الشغل!H159='النسب '!$F$3:$F$500)*(الشغل!G159='النسب '!$D$3:$D$500),0,1),0)),"") -> 
I160: =IF(H160<>"",INDEX('النسب '!$E$3:$E$500,MATCH(1,INDEX((الشغل!H160='النسب '!$F$3:$F$500)*(الشغل!G160='النسب '!$D$3:$D$500),0,1),0)),"") -> 
I161: =IF(H161<>"",INDEX('النسب '!$E$3:$E$500,MATCH(1,INDEX((الشغل!H161='النسب '!$F$3:$F$500)*(الشغل!G161='النسب '!$D$3:$D$500),0,1),0)),"") -> 
I162: =IF(H162<>"",INDEX('النسب '!$E$3:$E$500,MATCH(1,INDEX((الشغل!H162='النسب '!$F$3:$F$500)*(الشغل!G162='النسب '!$D$3:$D$500),0,1),0)),"") -> 
I163: =IF(H163<>"",INDEX('النسب '!$E$3:$E$500,MATCH(1,INDEX((الشغل!H163='النسب '!$F$3:$F$500)*(الشغل!G163='النسب '!$D$3:$D$500),0,1),0)),"") -> 
I164: =IF(H164<>"",INDEX('النسب '!$E$3:$E$500,MATCH(1,INDEX((الشغل!H164='النسب '!$F$3:$F$500)*(الشغل!G164='النسب '!$D$3:$D$500),0,1),0)),"") -> 
I165: =IF(H165<>"",INDEX('النسب '!$E$3:$E$500,MATCH(1,INDEX((الشغل!H165='النسب '!$F$3:$F$500)*(الشغل!G165='النسب '!$D$3:$D$500),0,1),0)),"") -> 
I166: =IF(H166<>"",INDEX('النسب '!$E$3:$E$500,MATCH(1,INDEX((الشغل!H166='النسب '!$F$3:$F$500)*(الشغل!G166='النسب '!$D$3:$D$500),0,1),0)),"") -> 
I167: =IF(H167<>"",INDEX('النسب '!$E$3:$E$500,MATCH(1,INDEX((الشغل!H167='النسب '!$F$3:$F$500)*(الشغل!G167='النسب '!$D$3:$D$500),0,1),0)),"") -> 
I168: =IF(H168<>"",INDEX('النسب '!$E$3:$E$500,MATCH(1,INDEX((الشغل!H168='النسب '!$F$3:$F$500)*(الشغل!G168='النسب '!$D$3:$D$500),0,1),0)),"") -> 
I169: =IF(H169<>"",INDEX('النسب '!$E$3:$E$500,MATCH(1,INDEX((الشغل!H169='النسب '!$F$3:$F$500)*(الشغل!G169='النسب '!$D$3:$D$500),0,1),0)),"") -> 
I170: =IF(H170<>"",INDEX('النسب '!$E$3:$E$500,MATCH(1,INDEX((الشغل!H170='النسب '!$F$3:$F$500)*(الشغل!G170='النسب '!$D$3:$D$500),0,1),0)),"") -> 
I171: =IF(H171<>"",INDEX('النسب '!$E$3:$E$500,MATCH(1,INDEX((الشغل!H171='النسب '!$F$3:$F$500)*(الشغل!G171='النسب '!$D$3:$D$500),0,1),0)),"") -> 
I172: =IF(H172<>"",INDEX('النسب '!$E$3:$E$500,MATCH(1,INDEX((الشغل!H172='النسب '!$F$3:$F$500)*(الشغل!G172='النسب '!$D$3:$D$500),0,1),0)),"") -> 
I173: =IF(H173<>"",INDEX('النسب '!$E$3:$E$500,MATCH(1,INDEX((الشغل!H173='النسب '!$F$3:$F$500)*(الشغل!G173='النسب '!$D$3:$D$500),0,1),0)),"") -> 
I174: =IF(H174<>"",INDEX('النسب '!$E$3:$E$500,MATCH(1,INDEX((الشغل!H174='النسب '!$F$3:$F$500)*(الشغل!G174='النسب '!$D$3:$D$500),0,1),0)),"") -> 
I175: =IF(H175<>"",INDEX('النسب '!$E$3:$E$500,MATCH(1,INDEX((الشغل!H175='النسب '!$F$3:$F$500)*(الشغل!G175='النسب '!$D$3:$D$500),0,1),0)),"") -> 
I176: =IF(H176<>"",INDEX('النسب '!$E$3:$E$500,MATCH(1,INDEX((الشغل!H176='النسب '!$F$3:$F$500)*(الشغل!G176='النسب '!$D$3:$D$500),0,1),0)),"") -> 
I177: =IF(H177<>"",INDEX('النسب '!$E$3:$E$500,MATCH(1,INDEX((الشغل!H177='النسب '!$F$3:$F$500)*(الشغل!G177='النسب '!$D$3:$D$500),0,1),0)),"") -> 
I178: =IF(H178<>"",INDEX('النسب '!$E$3:$E$500,MATCH(1,INDEX((الشغل!H178='النسب '!$F$3:$F$500)*(الشغل!G178='النسب '!$D$3:$D$500),0,1),0)),"") -> 
I179: =IF(H179<>"",INDEX('النسب '!$E$3:$E$500,MATCH(1,INDEX((الشغل!H179='النسب '!$F$3:$F$500)*(الشغل!G179='النسب '!$D$3:$D$500),0,1),0)),"") -> 
I180: =IF(H180<>"",INDEX('النسب '!$E$3:$E$500,MATCH(1,INDEX((الشغل!H180='النسب '!$F$3:$F$500)*(الشغل!G180='النسب '!$D$3:$D$500),0,1),0)),"") -> 
I181: =IF(H181<>"",INDEX('النسب '!$E$3:$E$500,MATCH(1,INDEX((الشغل!H181='النسب '!$F$3:$F$500)*(الشغل!G181='النسب '!$D$3:$D$500),0,1),0)),"") -> 
I182: =IF(H182<>"",INDEX('النسب '!$E$3:$E$500,MATCH(1,INDEX((الشغل!H182='النسب '!$F$3:$F$500)*(الشغل!G182='النسب '!$D$3:$D$500),0,1),0)),"") -> 
I183: =IF(H183<>"",INDEX('النسب '!$E$3:$E$500,MATCH(1,INDEX((الشغل!H183='النسب '!$F$3:$F$500)*(الشغل!G183='النسب '!$D$3:$D$500),0,1),0)),"") -> 
I184: =IF(H184<>"",INDEX('النسب '!$E$3:$E$500,MATCH(1,INDEX((الشغل!H184='النسب '!$F$3:$F$500)*(الشغل!G184='النسب '!$D$3:$D$500),0,1),0)),"") -> 
I185: =IF(H185<>"",INDEX('النسب '!$E$3:$E$500,MATCH(1,INDEX((الشغل!H185='النسب '!$F$3:$F$500)*(الشغل!G185='النسب '!$D$3:$D$500),0,1),0)),"") -> 
I186: =IF(H186<>"",INDEX('النسب '!$E$3:$E$500,MATCH(1,INDEX((الشغل!H186='النسب '!$F$3:$F$500)*(الشغل!G186='النسب '!$D$3:$D$500),0,1),0)),"") -> 
I187: =IF(H187<>"",INDEX('النسب '!$E$3:$E$500,MATCH(1,INDEX((الشغل!H187='النسب '!$F$3:$F$500)*(الشغل!G187='النسب '!$D$3:$D$500),0,1),0)),"") -> 
I188: =IF(H188<>"",INDEX('النسب '!$E$3:$E$500,MATCH(1,INDEX((الشغل!H188='النسب '!$F$3:$F$500)*(الشغل!G188='النسب '!$D$3:$D$500),0,1),0)),"") -> 
I189: =IF(H189<>"",INDEX('النسب '!$E$3:$E$500,MATCH(1,INDEX((الشغل!H189='النسب '!$F$3:$F$500)*(الشغل!G189='النسب '!$D$3:$D$500),0,1),0)),"") -> 
I190: =IF(H190<>"",INDEX('النسب '!$E$3:$E$500,MATCH(1,INDEX((الشغل!H190='النسب '!$F$3:$F$500)*(الشغل!G190='النسب '!$D$3:$D$500),0,1),0)),"") -> 
I191: =IF(H191<>"",INDEX('النسب '!$E$3:$E$500,MATCH(1,INDEX((الشغل!H191='النسب '!$F$3:$F$500)*(الشغل!G191='النسب '!$D$3:$D$500),0,1),0)),"") -> 
I192: =IF(H192<>"",INDEX('النسب '!$E$3:$E$500,MATCH(1,INDEX((الشغل!H192='النسب '!$F$3:$F$500)*(الشغل!G192='النسب '!$D$3:$D$500),0,1),0)),"") -> 
I193: =IF(H193<>"",INDEX('النسب '!$E$3:$E$500,MATCH(1,INDEX((الشغل!H193='النسب '!$F$3:$F$500)*(الشغل!G193='النسب '!$D$3:$D$500),0,1),0)),"") -> 
I194: =IF(H194<>"",INDEX('النسب '!$E$3:$E$500,MATCH(1,INDEX((الشغل!H194='النسب '!$F$3:$F$500)*(الشغل!G194='النسب '!$D$3:$D$500),0,1),0)),"") -> 
I195: =IF(H195<>"",INDEX('النسب '!$E$3:$E$500,MATCH(1,INDEX((الشغل!H195='النسب '!$F$3:$F$500)*(الشغل!G195='النسب '!$D$3:$D$500),0,1),0)),"") -> 
I196: =IF(H196<>"",INDEX('النسب '!$E$3:$E$500,MATCH(1,INDEX((الشغل!H196='النسب '!$F$3:$F$500)*(الشغل!G196='النسب '!$D$3:$D$500),0,1),0)),"") -> 
I197: =IF(H197<>"",INDEX('النسب '!$E$3:$E$500,MATCH(1,INDEX((الشغل!H197='النسب '!$F$3:$F$500)*(الشغل!G197='النسب '!$D$3:$D$500),0,1),0)),"") -> 
I198: =IF(H198<>"",INDEX('النسب '!$E$3:$E$500,MATCH(1,INDEX((الشغل!H198='النسب '!$F$3:$F$500)*(الشغل!G198='النسب '!$D$3:$D$500),0,1),0)),"") -> 
I199: =IF(H199<>"",INDEX('النسب '!$E$3:$E$500,MATCH(1,INDEX((الشغل!H199='النسب '!$F$3:$F$500)*(الشغل!G199='النسب '!$D$3:$D$500),0,1),0)),"") -> 
I200: =IF(H200<>"",INDEX('النسب '!$E$3:$E$500,MATCH(1,INDEX((الشغل!H200='النسب '!$F$3:$F$500)*(الشغل!G200='النسب '!$D$3:$D$500),0,1),0)),"") -> 
I201: =IF(H201<>"",INDEX('النسب '!$E$3:$E$500,MATCH(1,INDEX((الشغل!H201='النسب '!$F$3:$F$500)*(الشغل!G201='النسب '!$D$3:$D$500),0,1),0)),"") -> 
I202: =IF(H202<>"",INDEX('النسب '!$E$3:$E$500,MATCH(1,INDEX((الشغل!H202='النسب '!$F$3:$F$500)*(الشغل!G202='النسب '!$D$3:$D$500),0,1),0)),"") -> 
... 286 more rows

Sheet تفرير
I1: 188100 | J1: =+I4-I1 -> 320700
B2: تقرير النسب والمبلغ خلال العمليات للمقولين
H3: البيان | I3: التقرير | J3: القائمة
B4: المقاول | C4: العملية | D4: الكلاستر | E4: الصوبة | H4: الاجمالى القيمة | I4: =SUM(J10:J102) -> 508800 | J4: =VLOOKUP(B5,القائمة!$F$2:$G$21,2,0) -> 
C5: أعمدة وجرابات | H5: الاجمالى العمالة | I5: =SUM($F$10:F102) -> 102 | J5: =IF(B5<>"",I4-J4,"") -> 
E6: المبلغ | F6: =NoToTxt(I4,"جنيها","قرش") -> فقط خمسمائة وثمانية ألف وثمانمائة جنيها
B9: التاريخ | C9: المقاول | D9: الكلاستر | E9: الصوبة | F9: عدد العمال | G9: العملية | H9: النسبة | I9: العمل | J9: القيمة المستحقة
B10: 2019-06-26 | C10: احمد حلمى | D10: 32 | E10: F | F10: 0 | G10: ميكانيكا وتظليل51% | H10: 0.4 | I10: 20.4 | J10: 9200
B11: 2019-07-03 | C11: احمد حلمى | D11: 2 | E11: A | F11: 0 | G11: ميكانيكا وتظليل51% | H11: 0.55 | I11: 28.05 | J11: 12650
B12: 2019-07-03 | C12: احمد حلمى | D12: 2 | E12: B | F12: 0 | G12: بلاستيك كامل 49% | H12: 0.55 | I12: 26.95 | J12: 12100
B13: 2019-07-03 | C13: احمد حلمى | D13: 2 | E13: B | F13: 0 | G13: ميكانيكا وتظليل51% | H13: 0.55 | I13: 28.05 | J13: 12650
B14: 2019-07-03 | C14: احمد حلمى | D14: 2 | E14: C | F14: 0 | G14: بلاستيك كامل 49% | H14: 0.55 | I14: 26.95 | J14: 12100
B15: 2019-07-03 | C15: احمد حلمى | D15: 2 | E15: C | F15: 0 | G15: ميكانيكا وتظليل51% | H15: 0.55 | I15: 28.05 | J15: 12650
B16: 2019-07-03 | C16: احمد حلمى | D16: 2 | E16: D | F16: 0 | G16: ميكانيكا وتظليل51% | H16: 0.55 | I16: 28.05 | J16: 12650
B17: 2019-07-03 | C17: احمد حلمى | D17: 2 | E17: E | F17: 0 | G17: بلاستيك كامل 49% | H17: 0.55 | I17: 26.95 | J17: 12100
B18: 2019-07-03 | C18: احمد حلمى | D18: 2 | E18: A | F18: 0 | G18: بلاستيك كامل 49% | H18: 0.55 | I18: 26.95 | J18: 12100
B19: 2019-07-03 | C19: احمد حلمى | D19: 2 | E19: E | F19: 0 | G19: ميكانيكا وتظليل51% | H19: 0.55 | I19: 28.05 | J19: 12650
B20: 2019-07-03 | C20: احمد حلمى | D20: 2 | E20: F | F20: 0 | G20: بلاستيك كامل 49% | H20: 0.55 | I20: 26.95 | J20: 12100
B21: 2019-07-03 | C21: احمد حلمى | D21: 2 | E21: D | F21: 0 | G21: بلاستيك كامل 49% | H21: 0.55 | I21: 26.95 | J21: 12100
B22: 2019-07-03 | C22: احمد حلمى | D22: 22 | E22: D | F22: 0 | G22: بلاستيك كامل 49% | H22: 0.75 | I22: 36.75 | J22: 16500
B23: 2019-07-03 | C23: احمد حلمى | D23: 2 | E23: F | F23: 0 | G23: ميكانيكا وتظليل51% | H23: 0.55 | I23: 28.05 | J23: 12650
B24: 2019-07-03 | C24: شعبان الامام | D24: 13 | E24: A | F24: 11 | G24: ميكانيكا وتظليل51% | H24: 0.2 | I24: 10.2 | J24: 4600
B25: 2019-07-03 | C25: ياسر هجرس | D25: 13 | E25: A | F25: 0 | G25: بلاستيك كامل 49% | H25: 0.5 | I25: 24.5 | J25: 11000
B26: 2019-07-03 | C26: ياسر هجرس | D26: 13 | E26: B | F26: 14 | G26: بلاستيك كامل 49% | H26: 0.25 | I26: 12.25 | J26: 5500
B27: 2019-07-10 | C27: ياسر هجرس | D27: 13 | E27: b | F27: 0 | G27: بلاستيك كامل 49% | H27: 0.1 | I27: 4.9 | J27: 2200
B28: 2019-07-10 | C28: احمد فارس | D28: 13 | E28: b | F28: 0 | G28: ميكانيكا وتظليل51% | I28: 0 | J28: 0
B29: 2019-07-31 | C29: احمد فارس | D29: 13 | E29: b | F29: 0 | G29: ميكانيكا وتظليل51% | I29: 0 | J29: 0
B30: 2019-08-21 | C30: احمد فارس | D30: 13 | E30: b | F30: 0 | G30: ميكانيكا وتظليل51% | I30: 0 | J30: 0
B31: 2019-08-28 | C31: احمد فارس | D31: 13 | E31: b | F31: 0 | G31: ميكانيكا وتظليل51% | I31: 0 | J31: 0
B32: 2019-09-11 | C32: سامى الغندور | D32: 13 | E32: b | F32: 0 | G32: بلاستيك كامل 49% | I32: 0 | J32: 0
B33: 2019-07-10 | C33: محمد جمعه | D33: 13 | E33: c | F33: 0 | G33: ميكانيكا وتظليل51% | I33: 0 | J33: 0
B34: 2019-07-17 | C34: محمد جمعه | D34: 13 | E34: c | F34: 0 | G34: ميكانيكا وتظليل51% | I34: 0 | J34: 0
B35: 2019-07-24 | C35: محمد جمعه | D35: 13 | E35: c | F35: 0 | G35: ميكانيكا وتظليل51% | I35: 0 | J35: 0
B36: 2019-07-31 | C36: محمد جمعه | D36: 13 | E36: c | F36: 0 | G36: ميكانيكا وتظليل51% | I36: 0 | J36: 0
B37: 2019-08-21 | C37: محمد جمعه | D37: 13 | E37: c | F37: 0 | G37: ميكانيكا وتظليل51% | I37: 0 | J37: 0
B38: 2019-08-28 | C38: محمد جمعه | D38: 13 | E38: c | F38: 0 | G38: ميكانيكا وتظليل51% | I38: 0 | J38: 0
B39: 2019-07-10 | C39: هيثم العايدى | D39: 13 | E39: d | F39: 0 | G39: ميكانيكا وتظليل51% | H39: 0 | I39: 0 | J39: 0
B40: 2019-08-28 | C40: هيثم العايدى | D40: 13 | E40: d | F40: 0 | G40: ميكانيكا وتظليل51% | I40: 0 | J40: 0
B41: 2019-07-17 | C41: محمد على البرى | D41: 13 | E41: e | F41: 0 | G41: ميكانيكا وتظليل51% | H41: 0.5 | I41: 25.5 | J41: 11500
B42: 2019-07-31 | C42: محمد على البرى | D42: 13 | E42: e | F42: 0 | G42: ميكانيكا وتظليل51% | H42: 0.2 | I42: 10.2 | J42: 4600
B43: 2019-07-03 | C43: سامى الغندور | D43: 13 | E43: F | F43: 0 | G43: بلاستيك كامل 49% | H43: 0 | I43: 0 | J43: 0
B44: 2019-09-11 | C44: هيثم العايدى | D44: 13 | E44: F | F44: 0 | G44: ميكانيكا وتظليل51% | H44: 0 | I44: 0 | J44: 0
B45: 2019-07-10 | C45: هيثم العايدى | D45: 13 | E45: f | F45: 0 | G45: ميكانيكا وتظليل51% | I45: 0 | J45: 0
B46: 2019-09-11 | C46: سامى الغندور | D46: 13 | E46: F | F46: 0 | G46: بلاستيك كامل 49% | I46: 0 | J46: 0
B47: 2019-08-07 | C47: محمد سليمان | D47: 22 | E47: c | F47: 0 | G47: بلاستيك كامل 49% | H47: 0.25 | I47: 12.25 | J47: 5500
B48: 2019-07-03 | C48: طاهر طارق | D48: 22 | E48: D | F48: 0 | G48: ميكانيكا وتظليل51% | H48: 0.4 | I48: 20.4 | J48: 9200
B49: 2019-09-01 | C49: فتحى زيدان سعيد | D49: 22 | E49: d | F49: 0 | G49: بلاستيك كامل 49% | H49: 0.1 | I49: 4.9 | J49: 2200
B50: 2019-09-11 | C50: احمد كمال | D50: 23 | E50: a | F50: 0 | G50: ميكانيكا وتظليل51% | H50: 0.1 | I50: 5.1 | J50: 2300
B51: 2019-08-28 | C51: حسين عبد العال | D51: 23 | E51: A | F51: 0 | G51: بلاستيك كامل 49% | H51: 0.65 | I51: 31.85 | J51: 14300
B52: 2019-08-21 | C52: احمد كمال | D52: 23 | E52: a | F52: 0 | G52: ميكانيكا وتظليل51% | H52: 0.1 | I52: 5.1 | J52: 2300
B53: 2019-09-04 | C53: حسين عبد العال | D53: 23 | E53: a | F53: 0 | G53: بلاستيك كامل 49% | H53: 0.1 | I53: 4.9 | J53: 2200
B54: 2019-07-17 | C54: محمد عياد | D54: 23 | E54: b | F54: 0 | G54: بلاستيك كامل 49% | H54: 0.35 | I54: 17.15 | J54: 7700
B55: 2019-07-17 | C55: محمود فاروق | D55: 23 | E55: b | F55: 0 | G55: ميكانيكا وتظليل51% | H55: 0 | I55: 0 | J55: 0
B56: 2019-07-24 | C56: محمود فاروق | D56: 23 | E56: b | F56: 0 | G56: ميكانيكا وتظليل51% | H56: 0 | I56: 0 | J56: 0
B57: 2019-07-31 | C57: محمود فاروق | D57: 23 | E57: b | F57: 0 | G57: ميكانيكا وتظليل51% | H57: 0 | I57: 0 | J57: 0
B58: 2019-08-07 | C58: حسين عبد العال | D58: 23 | E58: b | F58: 0 | G58: بلاستيك كامل 49% | H58: 0 | I58: 0 | J58: 0
B59: 2019-08-07 | C59: محمود فاروق | D59: 23 | E59: b | F59: 0 | G59: ميكانيكا وتظليل51% | H59: 0 | I59: 0 | J59: 0
B60: 2019-07-03 | C60: حسين عبد العال | D60: 23 | E60: C | F60: 25 | G60: بلاستيك كامل 49% | H60: 0.7 | I60: 34.3 | J60: 15400
B61: 2019-09-11 | C61: احمد فارس | D61: 23 | E61: c | F61: 0 | G61: ميكانيكا وتظليل51% | H61: 0 | I61: 0 | J61: 0
B62: 2019-08-28 | C62: احمد فارس | D62: 23 | E62: C | F62: 0 | G62: ميكانيكا وتظليل51% | H62: 0 | I62: 0 | J62: 0
B63: 2019-07-03 | C63: حسين عبد العال | D63: 23 | E63: D | F63: 25 | G63: بلاستيك كامل 49% | H63: 0 | I63: 0 | J63: 0
B64: 2019-07-17 | C64: السيد محمد على | D64: 23 | E64: d | F64: 0 | G64: ميكانيكا وتظليل51% | H64: 0 | I64: 0 | J64: 0
B65: 2019-07-24 | C65: السيد محمد على | D65: 23 | E65: d | F65: 0 | G65: ميكانيكا وتظليل51% | H65: 0 | I65: 0 | J65: 0
B66: 2019-07-31 | C66: السيد محمد على | D66: 23 | E66: d | F66: 0 | G66: ميكانيكا وتظليل51% | H66: 0 | I66: 0 | J66: 0
B67: 2019-07-03 | C67: عرفه محمود | D67: 23 | E67: F | F67: 15 | G67: بلاستيك كامل 49% | H67: 0 | I67: 0 | J67: 0
B68: 2019-07-10 | C68: شعبان الامام | D68: 23 | E68: F | F68: 0 | G68: ميكانيكا وتظليل51% | H68: 0.1 | I68: 5.1 | J68: 2300
B69: 2019-09-11 | C69: احمد مرعى | D69: 23 | E69: f | F69: 0 | G69: ميكانيكا وتظليل51% | H69: 0.1 | I69: 5.1 | J69: 2300
B70: 2019-07-31 | C70: حسين عبد العال | D70: 24 | E70: a | F70: 0 | G70: بلاستيك كامل 49% | H70: 0.55 | I70: 26.95 | J70: 12100
B71: 2019-08-07 | C71: حسين عبد العال | D71: 24 | E71: a | F71: 0 | G71: بلاستيك كامل 49% | H71: 0.1 | I71: 4.9 | J71: 2200
B72: 2019-07-24 | C72: حسين عبد العال | D72: 24 | E72: b | F72: 0 | G72: بلاستيك كامل 49% | H72: 0.6 | I72: 29.4 | J72: 13200
B73: 2019-07-17 | C73: حسين عبد العال | D73: 24 | E73: c | F73: 0 | G73: بلاستيك كامل 49% | H73: 0.5 | I73: 24.5 | J73: 11000
B74: 2019-07-24 | C74: حسين عبد العال | D74: 24 | E74: c | F74: 0 | G74: بلاستيك كامل 49% | H74: 0.2 | I74: 9.8 | J74: 4400
B75: 2019-07-10 | C75: حسين عبد العال | D75: 24 | E75: D | F75: 0 | G75: بلاستيك كامل 49% | H75: 0.7 | I75: 34.3 | J75: 15400
B76: 2019-07-24 | C76: عرفه محمود | D76: 24 | E76: e | F76: 0 | G76: بلاستيك كامل 49% | H76: 0.65 | I76: 31.85 | J76: 14300
B77: 2019-08-21 | C77: عرفه محمود | D77: 24 | E77: E | F77: 0 | G77: بلاستيك كامل 49% | H77: 0.1 | I77: 4.9 | J77: 2200
B78: 2019-07-10 | C78: عرفه محمود | D78: 24 | E78: f | F78: 0 | G78: بلاستيك كامل 49% | H78: 0.7 | I78: 34.3 | J78: 15400
B79: 2019-08-21 | C79: عرفه محمود | D79: 24 | E79: f | F79: 0 | G79: بلاستيك كامل 49% | H79: 0.05 | I79: 2.45 | J79: 1100
B80: 2019-06-26 | C80: احمد حلمى | D80: 32 | E80: C | F80: 0 | G80: بلاستيك كامل 49% | H80: 0.3 | I80: 14.7 | J80: 6600
B81: 2019-07-03 | C81: احمد حلمى | D81: 32 | E81: C | F81: 0 | G81: ميكانيكا وتظليل51% | H81: 0.3 | I81: 15.3 | J81: 6900
B82: 2019-07-03 | C82: احمد حلمى | D82: 32 | E82: E | F82: 5 | G82: ميكانيكا وتظليل51% | H82: 0.4 | I82: 20.4 | J82: 9200
B83: 2019-07-03 | C83: احمد حلمى | D83: 32 | E83: E | F83: 0 | G83: بلاستيك كامل 49% | H83: 0.4 | I83: 19.6 | J83: 8800
B84: 2019-07-03 | C84: احمد حلمى | D84: 32 | E84: F | F84: 0 | G84: بلاستيك كامل 49% | H84: 0.4 | I84: 19.6 | J84: 8800
B85: 2019-07-24 | C85: ياسر حماد | D85: 33 | E85: a | F85: 0 | G85: بلاستيك كامل 49% | H85: 0 | I85: 0 | J85: 0
B86: 2019-09-06 | C86: ياسر حماد | D86: 33 | E86: A | F86: 0 | G86: بلاستيك كامل 49% | H86: 0 | I86: 0 | J86: 0
B87: 2019-07-10 | C87: ضياء على محمد | D87: 33 | E87: b | F87: 0 | G87: بلاستيك كامل 49% | H87: 0.2 | I87: 9.8 | J87: 4400
B88: 2019-07-17 | C88: ياسر حماد | D88: 33 | E88: d | F88: 0 | G88: بلاستيك كامل 49% | H88: 0 | I88: 0 | J88: 0
B89: 2019-07-03 | C89: سامى الغندور | D89: 33 | E89: E | F89: 7 | G89: بلاستيك كامل 49% | H89: 0.1 | I89: 4.9 | J89: 2200
B90: 2019-07-31 | C90: سامى الغندور | D90: 33 | E90: e | F90: 0 | G90: بلاستيك كامل 49% | H90: 0.5 | I90: 24.5 | J90: 11000
B91: 2019-07-10 | C91: سامى الغندور | D91: 33 | E91: f | F91: 0 | G91: بلاستيك كامل 49% | H91: 0.5 | I91: 24.5 | J91: 11000
B92: 2019-07-24 | C92: سامى الغندور | D92: 33 | E92: f | F92: 0 | G92: بلاستيك كامل 49% | H92: 0.15 | I92: 7.35 | J92: 3300
B93: 2019-08-07 | C93: عرفه محمود | D93: 34 | E93: a | F93: 0 | G93: بلاستيك كامل 49% | H93: 0.7 | I93: 34.3 | J93: 15400
B94: 2019-08-21 | C94: عرفه محمود | D94: 34 | E94: a | F94: 0 | G94: بلاستيك كامل 49% | H94: 0.05 | I94: 2.45 | J94: 1100
B95: 2019-08-28 | C95: عرفه محمود | D95: 34 | E95: B | F95: 0 | G95: بلاستيك كامل 49% | H95: 0.15 | I95: 7.35 | J95: 3300
B96: 2019-09-18 | C96: عرفه محمود | D96: 34 | E96: B | F96: 0 | G96: بلاستيك كامل 49% | H96: 0.15 | I96: 7.35 | J96: 3300
B97: 2019-08-28 | C97: عرفه محمود | D97: 34 | E97: d | F97: 0 | G97: بلاستيك كامل 49% | H97: 0.2 | I97: 9.8 | J97: 4400
B98: 2019-08-07 | C98: عرفه محمود | D98: 34 | E98: d | F98: 0 | G98: بلاستيك كامل 49% | H98: 0.55 | I98: 26.95 | J98: 12100
B99: 2019-08-07 | C99: سامى الغندور | D99: 34 | E99: e | F99: 0 | G99: بلاستيك كامل 49% | H99: 0.6 | I99: 29.4 | J99: 13200
B100: 2019-08-07 | C100: سامى الغندور | D100: 34 | E100: f | F100: 0 | G100: بلاستيك كامل 49% | H100: 0.6 | I100: 29.4 | J100: 13200
B101: 2019-09-04 | C101: هيثم العايدى | D101: 13 | E101: a | F101: 0 | G101: ميكانيكا وتظليل51% | I101: 0 | J101: 0
B102: 2019-09-04 | C102: احمد فارس | D102: 23 | E102: c | F102: 0 | G102: ميكانيكا وتظليل51% | H102: 0 | I102: 0 | J102: 0
B103: 2019-09-04 | C103: احمد مرعى | D103: 23 | E103: f | F103: 0 | G103: ميكانيكا وتظليل51% | H103: 0.2 | I103: 10.2 | J103: 4600
B104: 2019-09-04 | C104: احمد كمال | D104: 23 | E104: a | F104: 0 | G104: ميكانيكا وتظليل51% | H104: 0.15 | I104: 7.65 | J104: 3450
B105: 2019-09-04 | C105: عرفه محمود | D105: 34 | E105: B | F105: 0 | G105: بلاستيك كامل 49% | H105: 0.45 | I105: 22.05 | J105: 9900
B106: 2019-09-05 | C106: حسين عبد العال | D106: 13 | E106: A | F106: 0 | G106: بلاستيك كامل 49% | H106: 0 | I106: 0 | J106: 0
B107: 2019-07-24 | C107: ياسر حماد | D107: 33 | E107: d | F107: 0 | G107: بلاستيك كامل 49% | H107: 0 | I107: 0 | J107: 0
B108: 2019-09-07 | C108: ياسر حماد | D108: 33 | E108: D | F108: 0 | G108: بلاستيك كامل 49% | H108: 0 | I108: 0 | J108: 0
B109: 2019-09-07 | C109: فتحى زيدان سعيد | D109: 22 | E109: D | F109: 0 | G109: بلاستيك كامل 49% | H109: 0.1 | I109: 4.9 | J109: 2200
B110: 2019-09-08 | C110: السيد محمد على | D110: 23 | E110: D | F110: 0 | G110: بلاستيك كامل 49% | H110: 0 | I110: 0 | J110: 0
B111: 2019-09-11 | C111: حسين عبد العال | D111: 23 | E111: B | F111: 0 | G111: بلاستيك كامل 49% | H111: 0 | I111: 0 | J111: 0
B112: 2019-09-18 | C112: عرفه محمود | D112: 34 | E112: C | F112: 0 | G112: بلاستيك كامل 49% | H112: 0.6 | I112: 29.4 | J112: 13200
B113: 2019-09-18 | C113: حسين عبد العال | D113: 33 | E113: B | F113: 0 | G113: بلاستيك كامل 49% | H113: 0.4 | I113: 19.6 | J113: 8800
B114: 2019-09-25 | C114: عرفه محمود | D114: 48 | E114: F | F114: 0 | G114: بلاستيك كامل 49% | H114: 0.55 | I114: 26.95 | J114: 12100
B115: 2019-09-25 | C115: احمد عبد المنعم | D115: 33 | E115: C | F115: 0 | G115: بلاستيك كامل 49% | H115: 0.2 | I115: 9.8 | J115: 4400
B116: 2019-09-25 | C116: احمد فارس | D116: 13 | E116: B | F116: 0 | G116: ميكانيكا وتظليل51% | I116: 0 | J116: 0
B117: 2019-10-02 | C117: عرفه محمود | D117: 34 | E117: C | F117: 0 | G117: بلاستيك كامل 49% | H117: 0.15 | I117: 7.35 | J117: 3300
B118: 2019-10-02 | C118: احمد عبد المنعم | D118: 33 | E118: C | F118: 0 | G118: بلاستيك كامل 49% | H118: 0.15 | I118: 7.35 | J118: 3300
B119: 2019-10-02 | C119: عرفه محمود | D119: 48 | E119: F | F119: 0 | G119: بلاستيك كامل 49% | H119: 0.15 | I119: 7.35 | J119: 3300
B120: 2019-10-02 | C120: احمد فارس | D120: 23 | E120: C | F120: 0 | G120: ميكانيكا وتظليل51% | H120: 0 | I120: 0 | J120: 0
B121: 2019-10-29 | C121: ياسر حماد | D121: 44 | E121: A | F121: 0 | G121: بلاستيك كامل 49% | H121: 0 | I121: 0 | J121: 0
B122: 2019-11-27 | C122: ياسر حماد | D122: 44 | E122: A | F122: 0 | G122: بلاستيك كامل 49% | H122: 0 | I122: 0 | J122: 0
B123: 2019-11-27 | C123: ياسر حماد | D123: 44 | E123: B | F123: 0 | G123: بلاستيك كامل 49% | H123: 0 | I123: 0 | J123: 0
B124: 2019-11-27 | C124: ياسر حماد | D124: 44 | E124: C | F124: 0 | G124: بلاستيك كامل 49% | H124: 0 | I124: 0 | J124: 0
B125: 2019-10-23 | C125: ياسر حماد | D125: 44 | E125: D | F125: 0 | G125: بلاستيك كامل 49% | H125: 0 | I125: 0 | J125: 0
B126: 2019-10-09 | C126: احمد عبد المنعم | D126: 33 | E126: C | F126: 0 | G126: بلاستيك كامل 49% | H126: 0.15 | I126: 7.35 | J126: 3300
B127: 2019-10-09 | C127: سامى الغندور | D127: 34 | E127: E | F127: 0 | G127: بلاستيك كامل 49% | H127: 0.1 | I127: 4.9 | J127: 2200
B128: 2019-10-09 | C128: عرفه محمود | D128: 47 | E128: A | F128: 0 | G128: بلاستيك كامل 49% | H128: 0.75 | I128: 36.75 | J128: 16500
B129: 2019-10-29 | C129: ياسر حماد | D129: 44 | E129: D | F129: 0 | G129: بلاستيك كامل 49% | H129: 0 | I129: 0 | J129: 0
B130: 2019-11-06 | C130: ياسر حماد | D130: 44 | E130: D | F130: 0 | G130: بلاستيك كامل 49% | H130: 0 | I130: 0 | J130: 0
B131: 2019-11-27 | C131: ياسر حماد | D131: 44 | E131: D | F131: 0 | G131: بلاستيك كامل 49% | H131: 0 | I131: 0 | J131: 0
B132: 2019-10-09 | C132: ياسر حماد | D132: 44 | E132: E | F132: 0 | G132: بلاستيك كامل 49% | H132: 0 | I132: 0 | J132: 0
B133: 2019-10-09 | C133: احمد كمال | D133: 23 | E133: A | F133: 0 | G133: ميكانيكا وتظليل51% | H133: 0.15 | I133: 7.65 | J133: 3450
B134: 2019-10-16 | C134: عرفه محمود | D134: 47 | E134: B | F134: 0 | G134: بلاستيك كامل 49% | H134: 0.5 | I134: 24.5 | J134: 11000
B135: 2019-10-16 | C135: هيثم العايدى | D135: 23 | E135: D | F135: 0 | G135: ميكانيكا وتظليل51% | H135: 0 | I135: 0 | J135: 0
B136: 2019-10-16 | C136: احمد فارس | D136: 23 | E136: C | F136: 0 | G136: ميكانيكا وتظليل51% | H136: 0 | I136: 0 | J136: 0
B137: 2019-10-16 | C137: ياسر ابو طالب | D137: 66 | E137: C | F137: 0 | G137: ميكانيكا وتظليل51% | H137: 0.25 | I137: 12.75 | J137: 5750
B138: 2019-10-16 | C138: ياسر ابو طالب | D138: 66 | E138: C | F138: 0 | G138: بلاستيك كامل 49% | H138: 0.35 | I138: 17.15 | J138: 7700
B139: 2019-10-16 | C139: سامى الغندور | D139: 67 | E139: B | F139: 0 | G139: بلاستيك كامل 49% | I139: 0 | J139: 0
B140: 2019-10-23 | C140: ياسر حماد | D140: 44 | E140: E | F140: 0 | G140: بلاستيك كامل 49% | H140: 0 | I140: 0 | J140: 0
B141: 2019-11-06 | C141: ياسر حماد | D141: 44 | E141: E | F141: 0 | G141: بلاستيك كامل 49% | H141: 0 | I141: 0 | J141: 0
B142: 2019-10-09 | C142: ياسر حماد | D142: 44 | E142: F | F142: 0 | G142: بلاستيك كامل 49% | H142: 0 | I142: 0 | J142: 0
B143: 2019-10-23 | C143: ياسر حماد | D143: 44 | E143: F | F143: 0 | G143: بلاستيك كامل 49% | H143: 0 | I143: 0 | J143: 0
B144: 2019-11-06 | C144: ياسر حماد | D144: 44 | E144: F | F144: 0 | G144: بلاستيك كامل 49% | H144: 0 | I144: 0 | J144: 0
B145: 2019-11-27 | C145: ياسر حماد | D145: 44 | E145: F | F145: 0 | G145: بلاستيك كامل 49% | H145: 0 | I145: 0 | J145: 0
B146: 2019-10-02 | C146: ياسر حماد | D146: 48 | E146: A | F146: 0 | G146: بلاستيك كامل 49% | H146: 0 | I146: 0 | J146: 0
B147: 2019-10-23 | C147: احمد فارس | D147: 23 | E147: C | F147: 0 | G147: ميكانيكا وتظليل51% | H147: 0 | I147: 0 | J147: 0
B148: 2019-10-23 | C148: سامى الغندور | D148: 67 | E148: B | F148: 0 | G148: بلاستيك كامل 49% | I148: 0 | J148: 0
B149: 2019-10-23 | C149: سامى الغندور | D149: 67 | E149: A | F149: 0 | G149: بلاستيك كامل 49% | I149: 0 | J149: 0
B150: 2019-10-23 | C150: عرفه محمود | D150: 87 | E150: F | F150: 0 | G150: بلاستيك كامل 49% | H150: 0.35 | I150: 17.15 | J150: 7700
B151: 2019-10-23 | C151: حسين عبد العال | D151: 87 | E151: A | F151: 0 | G151: بلاستيك كامل 49% | H151: 0.2 | I151: 9.8 | J151: 4400
B152: 2019-10-23 | C152: حسين عبد العال | D152: 87 | E152: B | F152: 0 | G152: بلاستيك كامل 49% | H152: 0.3 | I152: 14.7 | J152: 6600
B153: 2019-10-23 | C153: عرفه محمود | D153: 47 | E153: B | F153: 0 | G153: بلاستيك كامل 49% | H153: 0.2 | I153: 9.8 | J153: 4400
B154: 2019-10-23 | C154: هيثم العايدى | D154: 67 | E154: A | F154: 0 | G154: ميكانيكا وتظليل51% | H154: 0 | I154: 0 | J154: 0
B155: 2019-10-23 | C155: هيثم العايدى | D155: 67 | E155: B | F155: 0 | G155: ميكانيكا وتظليل51% | H155: 0 | I155: 0 | J155: 0
B156: 2019-10-23 | C156: محمود فاروق | D156: 23 | E156: B | F156: 0 | G156: ميكانيكا وتظليل51% | H156: 0 | I156: 0 | J156: 0
B157: 2019-10-23 | C157: ياسر ابو طالب | D157: 66 | E157: C | F157: 0 | G157: بلاستيك كامل 49% | H157: 0.2 | I157: 9.8 | J157: 4400
B158: 2019-10-23 | C158: سامى الغندور | D158: 67 | E158: D | F158: 0 | G158: بلاستيك كامل 49% | H158: 0.2 | I158: 9.8 | J158: 4400
B159: 2019-10-23 | C159: ياسر حماد | D159: 48 | E159: A | F159: 0 | G159: بلاستيك كامل 49% | H159: 0 | I159: 0 | J159: 0
B160: 2019-11-27 | C160: ياسر حماد | D160: 48 | E160: A | F160: 0 | G160: بلاستيك كامل 49% | H160: 0 | I160: 0 | J160: 0
B161: 2019-10-29 | C161: حسين عبد العال | D161: 87 | E161: A | F161: 0 | G161: بلاستيك كامل 49% | H161: 0.35 | I161: 17.15 | J161: 7700
B162: 2019-10-29 | C162: حسين عبد العال | D162: 87 | E162: B | F162: 0 | G162: بلاستيك كامل 49% | H162: 0.25 | I162: 12.25 | J162: 5500
B163: 2019-10-29 | C163: سامى الغندور | D163: 87 | E163: D | F163: 0 | G163: بلاستيك كامل 49% | H163: 0.4 | I163: 19.6 | J163: 8800
B164: 2019-10-29 | C164: سامى الغندور | D164: 67 | E164: A | F164: 0 | G164: بلاستيك كامل 49% | H164: 0 | I164: 0 | J164: 0
B165: 2019-10-29 | C165: سامى الغندور | D165: 67 | E165: B | F165: 0 | G165: بلاستيك كامل 49% | H165: 0 | I165: 0 | J165: 0
B166: 2019-10-29 | C166: عرفه محمود | D166: 87 | E166: F | F166: 0 | G166: بلاستيك كامل 49% | H166: 0.25 | I166: 12.25 | J166: 5500
B167: 2019-10-29 | C167: ياسر ابو طالب | D167: 66 | E167: C | F167: 0 | G167: بلاستيك كامل 49% | H167: 0.15 | I167: 7.35 | J167: 3300
B168: 2019-10-29 | C168: ياسر ابو طالب | D168: 66 | E168: C | F168: 0 | G168: ميكانيكا وتظليل51% | H168: 0.1 | I168: 5.1 | J168: 2300
B169: 2019-10-29 | C169: احمد عبد المنعم | D169: 33 | E169: C | F169: 0 | G169: بلاستيك كامل 49% | H169: 0.15 | I169: 7.35 | J169: 3300
B170: 2019-10-29 | C170: احمد فارس | D170: 24 | E170: D | F170: 0 | G170: ميكانيكا وتظليل51% | H170: 0.4 | I170: 20.4 | J170: 9200
B171: 2019-10-29 | C171: عرفه محمود | D171: 48 | E171: F | F171: 0 | G171: بلاستيك كامل 49% | H171: 0.05 | I171: 2.45 | J171: 1100
B172: 2019-11-06 | C172: سامى الغندور | D172: 87 | E172: D | F172: 0 | G172: بلاستيك كامل 49% | H172: 0.2 | I172: 9.8 | J172: 4400
B173: 2019-11-06 | C173: عرفه محمود | D173: 87 | E173: E | F173: 0 | G173: بلاستيك كامل 49% | H173: 0.6 | I173: 29.4 | J173: 13200
B174: 2019-11-06 | C174: عرفه محمود | D174: 87 | E174: F | F174: 0 | G174: بلاستيك كامل 49% | H174: 0.1 | I174: 4.9 | J174: 2200
B175: 2019-11-06 | C175: حسين عبد العال | D175: 87 | E175: A | F175: 0 | G175: بلاستيك كامل 49% | H175: 0.2 | I175: 9.8 | J175: 4400
B176: 2019-11-06 | C176: حسين عبد العال | D176: 87 | E176: B | F176: 0 | G176: بلاستيك كامل 49% | H176: 0.15 | I176: 7.35 | J176: 3300
B177: 2019-11-06 | C177: حسين عبد العال | D177: 86 | E177: A | F177: 0 | G177: بلاستيك كامل 49% | H177: 0.6 | I177: 29.4 | J177: 13200
B178: 2019-10-02 | C178: ياسر حماد | D178: 48 | E178: B | F178: 0 | G178: بلاستيك كامل 49% | H178: 0 | I178: 0 | J178: 0
B179: 2019-10-09 | C179: ياسر حماد | D179: 48 | E179: B | F179: 0 | G179: بلاستيك كامل 49% | H179: 0 | I179: 0 | J179: 0
B180: 2019-11-27 | C180: ياسر حماد | D180: 48 | E180: B | F180: 0 | G180: بلاستيك كامل 49% | H180: 0 | I180: 0 | J180: 0
B181: 2019-11-06 | C181: احمد عبد المنعم | D181: 83 | E181: E | F181: 0 | G181: بلاستيك كامل 49% | H181: 0.3 | I181: 14.7 | J181: 6600
B182: 2019-11-06 | C182: احمد فارس | D182: 23 | E182: C | F182: 0 | G182: ميكانيكا وتظليل51% | H182: 0 | I182: 0 | J182: 0
B183: 2019-11-06 | C183: احمد فارس | D183: 24 | E183: D | F183: 0 | G183: ميكانيكا وتظليل51% | H183: 0.3 | I183: 15.3 | J183: 6900
B184: 2019-11-06 | C184: احمد فارس | D184: 24 | E184: F | F184: 0 | G184: ميكانيكا وتظليل51% | H184: 0.05 | I184: 2.55 | J184: 1150
B185: 2019-11-06 | C185: هيثم العايدى | D185: 24 | E185: A | F185: 0 | G185: ميكانيكا وتظليل51% | H185: 0 | I185: 0 | J185: 0
B186: 2019-11-06 | C186: هيثم العايدى | D186: 24 | E186: B | F186: 0 | G186: ميكانيكا وتظليل51% | H186: 0 | I186: 0 | J186: 0
B187: 2019-11-06 | C187: ياسر ابو طالب | D187: 66 | E187: C | F187: 0 | G187: ميكانيكا وتظليل51% | H187: 0.4 | I187: 20.4 | J187: 9200
B188: 2019-11-06 | C188: ياسر ابو طالب | D188: 66 | E188: C | F188: 0 | G188: بلاستيك كامل 49% | H188: 0.05 | I188: 2.45 | J188: 1100
B189: 2019-11-13 | C189: عرفه محمود | D189: 47 | E189: B | F189: 0 | G189: بلاستيك كامل 49% | H189: 0.05 | I189: 2.45 | J189: 1100
B190: 2019-11-13 | C190: عرفه محمود | D190: 86 | E190: E | F190: 0 | G190: بلاستيك كامل 49% | H190: 0.45 | I190: 22.05 | J190: 9900
B191: 2019-11-13 | C191: عرفه محمود | D191: 87 | E191: E | F191: 0 | G191: بلاستيك كامل 49% | H191: 0.1 | I191: 4.9 | J191: 2200
B192: 2019-11-13 | C192: عرفه محمود | D192: 87 | E192: F | F192: 0 | G192: بلاستيك كامل 49% | H192: 0.15 | I192: 7.35 | J192: 3300
B193: 2019-11-13 | C193: سامى الغندور | D193: 67 | E193: C | F193: 0 | G193: بلاستيك كامل 49% | H193: 0.4 | I193: 19.6 | J193: 8800
B194: 2019-11-13 | C194: احمد فارس | D194: 24 | E194: F | F194: 0 | G194: ميكانيكا وتظليل51% | H194: 0.15 | I194: 7.65 | J194: 3450
B195: 2019-11-13 | C195: ناصر | D195: 33 | E195: F | F195: 0 | G195: ميكانيكا وتظليل51% | H195: 0.1 | I195: 5.1 | J195: 2300
B196: 2019-11-13 | C196: هيثم العايدى | D196: 33 | E196: E | F196: 0 | G196: ميكانيكا وتظليل51% | H196: 0.65 | I196: 33.15 | J196: 14950
B197: 2019-11-13 | C197: هيثم العايدى | D197: 24 | E197: a | F197: 0 | G197: ميكانيكا وتظليل51% | H197: 0 | I197: 0 | J197: 0
B198: 2019-11-13 | C198: هيثم العايدى | D198: 24 | E198: b | F198: 0 | G198: ميكانيكا وتظليل51% | H198: 0 | I198: 0 | J198: 0
B199: 2019-10-02 | C199: ياسر حماد | D199: 48 | E199: C | F199: 0 | G199: بلاستيك كامل 49% | H199: 0 | I199: 0 | J199: 0
B200: 2019-10-23 | C200: ياسر حماد | D200: 48 | E200: C | F200: 0 | G200: بلاستيك كامل 49% | H200: 0 | I200: 0 | J200: 0
B201: 2019-11-27 | C201: ياسر حماد | D201: 48 | E201: C | F201: 0 | G201: بلاستيك كامل 49% | H201: 0 | I201: 0 | J201: 0
B202: 2019-10-02 | C202: ياسر حماد | D202: 48 | E202: D | F202: 0 | G202: بلاستيك كامل 49% | H202: 0 | I202: 0 | J202: 0
... 292 more rows
